Workbook

Sheet Esimesed-tagumised
A1: 17 TOLLI
A2: 235 | B2: 60 | C2: 17
A3: 255 | B3: 55 | C3: 17
A5: 225 | B5: 45 | C5: 17
A6: 245 | B6: 40 | C6: 17
A7: 255 | B7: 45 | C7: 17
A9: 235 | B9: 45 | C9: 17
A10: 255 | B10: 40 | C10: 17
A12: 18 TOLLI
A13: 235 | B13: 50 | C13: 18
A14: 255 | B14: 45 | C14: 18
A16: 225 | B16: 45 | C16: 18
A17: 255 | B17: 40 | C17: 18
A19: 245 | B19: 45 | C19: 18
A20: 275 | B20: 40 | C20: 18
A22: 255 | B22: 45 | C22: 18
A23: 275 | B23: 45 | C23: 18
A25: 225 | B25: 40 | C25: 18
A26: 245 | B26: 35 | C26: 18
A27: 255 | B27: 35 | C27: 18
A29: 235 | B29: 40 | C29: 18
A30: 265 | B30: 40 | C30: 18
A32: 245 | B32: 40 | C32: 18
A33: 265 | B33: 35 | C33: 18
A34: 275 | B34: 35 | C34: 18
A36: 255 | B36: 40 | C36: 18
A37: 285 | B37: 35 | C37: 18
A39: 19 TOLLI
A40: 235 | B40: 50 | C40: 19
A41: 255 | B41: 45 | C41: 19
A43: 255 | B43: 50 | C43: 19
A44: 285 | B44: 45 | C44: 19
A46: 235 | B46: 45 | C46: 19
A47: 255 | B47: 40 | C47: 19
A49: 245 | B49: 45 | C49: 19
A50: 275 | B50: 40 | C50: 19
A52: 255 | B52: 45 | C52: 19
A53: 285 | B53: 40 | C53: 19
A55: 225 | B55: 40 | C55: 19
A56: 255 | B56: 35 | C56: 19
A58: 235 | B58: 40 | C58: 19
A59: 285 | B59: 30 | C59: 19
A61: 245 | B61: 40 | C61: 19
A62: 275 | B62: 35 | C62: 19
A63: 285 | B63: 35 | C63: 19
A65: 255 | B65: 40 | C65: 19
A66: 275 | B66: 40 | C66: 19
A68: 225 | B68: 35 | C68: 19
A69: 235 | B69: 35 | C69: 19
A70: 255 | B70: 30 | C70: 19
A72: 235 | B72: 35 | C72: 19
A73: 265 | B73: 35 | C73: 19
A75: 245 | B75: 35 | C75: 19
A76: 275 | B76: 30 | C76: 19
A78: 255 | B78: 35 | C78: 19
A79: 285 | B79: 30 | C79: 19
A81: 20 TOLLI
A82: 235 | B82: 45 | C82: 20
A83: 255 | B83: 40 | C83: 20
A85: 255 | B85: 45 | C85: 20
A86: 285 | B86: 40 | C86: 20
A88: 245 | B88: 40 | C88: 20
A89: 275 | B89: 35 | C89: 20
A91: 275 | B91: 40 | C91: 20
A92: 315 | B92: 35 | C92: 20
A94: 225 | B94: 35 | C94: 20
A95: 255 | B95: 30 | C95: 20
A97: 245 | B97: 35 | C97: 20
A98: 285 | B98: 35 | C98: 20
A99: 275 | B99: 30 | C99: 20
A101: 255 | B101: 35 | C101: 20
A102: 275 | B102: 35 | C102: 20
A103: 285 | B103: 30 | C103: 20

Sheet SOODUS
B1: HINNAKIRI SUVI 2014
B3: Mõõt | C3: Artikkel | D3: Koormus-indeks | E3: Kiirusindeks | F3: Märkus | G3: Tootja | H3: Mudel | I3: Laoseis | J3: Müük | K3: Kuni 31/5 | L3: Extra | M3: Müük 2013 | N3: Prognoos 2013 | P3: Tellida | Q3: Järel | R3: Ost, PL 2014 | S3: Ost, PL | T3: Ost | U3: Laohind | V3: Jaehind SR | W3: Jaehind 2014 | Y3: Jaehind km-ta | Z3: Müügihind | AA3: R24 hulgi | AB3: R24 jae | AC3: Müügikate, % | AD3: Müügikate € | AE3: Rehvimärgis
B4: SÕIDUAUTO REHVID | T4: 0.686 | Y4: BA | Z4: 0.58
T5: 0.66 | Y5: GT | Z5: 0.58
Y6: GI, NX | Z6: 0.58
B7: Profiil 80
B8: 135/80R13 | C8: 1540433 | D8: 70 | E8: T | G8: BARUM | H8: BRILLANTIS 2 | N8: 0 | R8: 27.42 | T8: =R8*T$5 -> 18.0972 | W8: 50 | Y8: =X8/1.2 -> 0 | Z8: =X8*Z$4 -> 0 | AC8: =(Y8*Z$4-0.65-T8)/T8 -> -1.035917158 | AD8: =Y8*Z$4-0.65-T8 -> -18.7472 | AE8: F | AF8: C | AG8: 2 (70 dB)
B9: 145/80R13 | C9: 1540382 | D9: 75 | E9: T | G9: BARUM | H9: BRILLANTIS 2 | N9: 0 | R9: 30.8 | T9: =R9*T$5 -> 20.328 | W9: 53 | Y9: =X9/1.2 -> 0 | Z9: 0 | AC9: -1.0319756 | AD9: -20.978 | AE9: E | AF9: C | AG9: 2 (70 dB)
B10: 155/80R13 | C10: 1540478 | D10: 79 | E10: T | G10: BARUM | H10: BRILLANTIS 2 | I10: 12 | J10: 64 | K10: 36 | M10: 39+4 | N10: 40 | R10: 30.8 | T10: =R10*T$5 -> 20.328 | U10: 20.5 | W10: 53 | Y10: 0 | Z10: 0 | AC10: -1.0319756 | AD10: -20.978 | AE10: E | AF10: C | AG10: 2 (70 dB)
B11: 165/80R13 | C11: 1540482 | D11: 83 | E11: T | G11: BARUM | H11: BRILLANTIS 2 | I11: 4 | J11: 4 | M11: 9 | N11: 12 | R11: 36.71 | T11: =R11*T$5 -> 24.2286 | U11: 25.59 | W11: 63 | Y11: 0 | Z11: 0 | AC11: -1.026827799 | AD11: -24.8786 | AE11: E | AF11: C | AG11: 2 (70 dB)
B12: 165/80R14 | C12: 1540321 | D12: 85 | E12: T | G12: BARUM | H12: BRILLANTIS | J12: 8 | K12: 6 | M12: 3 | N12: 0 | R12: 37.13 | T12: 24.5058 | W12: 68 | Y12: 0 | Z12: 0 | AC12: -1.026524333 | AD12: -25.1558 | AE12: E | AF12: C | AG12: 3 (71 dB)
B13: 175/80R14 | C13: 1540439 | D13: 88 | E13: T | G13: BARUM | H13: BRILLANTIS 2 | I13: 8 | J13: 36 | K13: 26 | M13: 20 | N13: 32 | R13: 37.97 | T13: 25.0602 | U13: 25.32 | W13: 65 | Y13: 0 | Z13: 0 | AC13: -1.025937542 | AD13: -25.7102 | AE13: E | AF13: C | AG13: 2 (70 dB)
B14: Profiil 70
B15: 145/70R13 | C15: 1540381 | D15: 71 | E15: T | G15: BARUM | H15: BRILLANTIS 2 | I15: 4 | M15: 4 | N15: 4 | R15: 29.53 | T15: 19.4898 | U15: 20.17 | W15: 53 | Y15: 0 | Z15: =X15*Z$4 -> 0 | AC15: =(Y15*Z$4-0.65-T15)/T15 -> -1.033350778 | AD15: =Y15*Z$4-0.65-T15 -> -20.1398 | AE15: E | AF15: C | AG15: 2 (70 dB)
B16: 155/70R13 | C16: 1540480 | D16: 75 | E16: T | G16: BARUM | H16: BRILLANTIS 2 | I16: 8 | J16: 10 | K16: 4 | M16: 9 | N16: 12 | R16: 29.53 | T16: 19.4898 | U16: 20.03 | W16: 53 | Y16: 0 | Z16: 0 | AC16: -1.033350778 | AD16: -20.1398 | AE16: E | AF16: C | AG16: 2 (70 dB)
B17: 165/70R13 | C17: 1540488 | D17: 79 | E17: T | G17: BARUM | H17: BRILLANTIS 2 | I17: 3 | J17: 37 | K17: 20 | M17: 13 | N17: 12 | R17: 31.64 | T17: 20.8824 | U17: 21.05 | W17: 55 | Y17: 0 | Z17: 0 | AC17: -1.03112669 | AD17: -21.5324 | AE17: E | AF17: C | AG17: 2 (71 dB)
C18: 1540389 | D18: 83 | E18: T | F18: XL | G18: BARUM | H18: BRILLANTIS 2 | N18: 0 | R18: 36.29 | T18: 23.9514 | W18: 65 | Y18: 0 | Z18: 0 | AC18: -1.027138288 | AD18: -24.6014 | AE18: E | AF18: C | AG18: 2 (70 dB)
B19: 175/70R13 | C19: 1540489 | D19: 82 | E19: T | G19: BARUM | H19: BRILLANTIS 2 | I19: 8 | J19: 49 | K19: 33 | M19: 15+40 | N19: 75 | R19: 33.75 | T19: 22.275 | U19: 22.68 | W19: 55 | Y19: 0 | Z19: 0 | AC19: -1.029180696 | AD19: -22.925 | AE19: E | AF19: C | AG19: 2 (70 dB)
B20: 185/70R13 | C20: 1540483 | D20: 86 | E20: T | G20: BARUM | H20: BRILLANTIS 2 | I20: 2 | J20: 6 | K20: 2 | N20: 0 | R20: 42.61 | T20: 28.1226 | U20: 28.35 | W20: 75 | Y20: 0 | Z20: 0 | AC20: -1.023113083 | AD20: -28.7726 | AE20: E | AF20: C | AG20: 2 (70 dB)
B21: 165/70R14 | C21: 1540390 | D21: 81 | E21: T | G21: BARUM | H21: BRILLANTIS 2 | I21: 4 | J21: 34 | K21: 24 | M21: 22+4 | N21: 32 | R21: 35.02 | T21: 23.1132 | U21: 26.01 | W21: 63 | Y21: 0 | Z21: 0 | AC21: -1.028122458 | AD21: -23.7632 | AE21: E | AF21: C | AG21: 2 (70 dB)
C22: 1540391 | D22: 85 | E22: T | F22: XL | G22: BARUM | H22: BRILLANTIS 2 | N22: 0 | R22: 38.39 | T22: 25.3374 | W22: 70 | Y22: 0 | Z22: 0 | AC22: -1.025653777 | AD22: -25.9874 | AE22: E | AF22: C | AG22: 2 (71 dB)
B23: 175/70R14 | C23: 17530148311 | D23: 84 | E23: T | G23: NORDEXX | H23: COMUS | I23: 20 | J23: 20 | K23: 10 | T23: 21.65 | U23: 21.65 | W23: 55 | X23: 50 | Y23: =X23/1.2 -> 41.66666667 | Z23: =X23*Z$6 -> 29 | AC23: =(Y23*Z$6-0.75-T23)/T23 -> 0.08160123172 | AD23: =Y23*Z$6-0.75-T23 -> 1.766666667 | AE23: E | AF23: E | AG23: 3 (74 dB)
G24: NORDEXX | H24: NS5000 | P24: 50 | T24: 20.8 | X24: 55 | Y24: =X24/1.2 -> 45.83333333 | Z24: =X24*Z$6 -> 31.9 | AC24: =(Y24*Z$6-0.75-T24)/T24 -> 0.2419871795 | AD24: =Y24*Z$6-0.75-T24 -> 5.033333333
C25: 1540490 | D25: 84 | E25: T | G25: BARUM | H25: BRILLANTIS 2 | I25: 13 | J25: 142 | K25: 120 | M25: 78+30 | N25: 150 | R25: 42.61 | T25: 28.1226 | U25: 28.35 | W25: 70 | Y25: 0 | Z25: =X25*Z$4 -> 0 | AC25: =(Y25*Z$4-0.65-T25)/T25 -> -1.023113083 | AD25: =Y25*Z$4-0.65-T25 -> -28.7726 | AE25: E | AF25: C | AG25: 2 (70 dB)
C26: 3411110 | D26: 84 | E26: T | G26: GISLAVED | H26: URBAN SPEED | I26: 2 | J26: 18 | K26: 8 | M26: 2 | N26: 12 | R26: 43.14 | T26: 28.4724 | U26: 28.71 | W26: 78 | Y26: =X26/1.2 -> 0 | Z26: =X26*Z$6 -> 0 | AC26: =(Y26*Z$4-0.65-T26)/T26 -> -1.022829126 | AD26: =Y26*Z$4-0.65-T26 -> -29.1224 | AE26: E | AF26: C | AG26: 2 (70 dB)
C27: 1540396 | D27: 88 | E27: T | F27: XL | G27: BARUM | H27: BRILLANTIS 2 | J27: 18 | K27: 10 | M27: 4 | N27: 4 | R27: 46.83 | T27: 30.9078 | W27: 80 | Y27: 0 | Z27: 0 | AC27: =(Y27*Z$4-0.65-T27)/T27 -> -1.02103029 | AD27: =Y27*Z$4-0.65-T27 -> -31.5578 | AE27: E | AF27: C | AG27: 2 (71 dB)
B28: 185/70R14 | C28: 1540484 | D28: 88 | E28: T | G28: BARUM | H28: BRILLANTIS 2 | I28: 8 | J28: 32 | K28: 18 | M28: 42 | N28: 50 | R28: 43.03 | T28: 28.3998 | U28: 28.66 | W28: 70 | Y28: 0 | Z28: 0 | AC28: =(Y28*Z$4-0.65-T28)/T28 -> -1.022887485 | AD28: =Y28*Z$4-0.65-T28 -> -29.0498 | AE28: E | AF28: C | AG28: 2 (70 dB)
B29: 195/70R14 | C29: 1540496 | D29: 91 | E29: T | G29: BARUM | H29: BRILLANTIS 2 | J29: 8 | K29: 8 | M29: 4 | N29: 4 | R29: 55.69 | T29: 36.7554 | W29: 93 | Y29: 0 | Z29: 0 | AC29: =(Y29*Z$4-0.65-T29)/T29 -> -1.017684476 | AD29: =Y29*Z$4-0.65-T29 -> -37.4054 | AE29: E | AF29: C | AG29: 2 (71 dB)
B30: Profiil 65
B31: 155/65R13 | C31: 1540383 | D31: 73 | E31: T | G31: BARUM | H31: BRILLANTIS 2 | I31: 4 | J31: 2 | M31: 6 | N31: 4 | R31: 32.91 | T31: 21.7206 | U31: 21.9 | W31: 60 | Y31: 0 | Z31: =X31*Z$4 -> 0 | AC31: =(Y31*Z$4-0.65-T31)/T31 -> -1.029925509 | AD31: =Y31*Z$4-0.65-T31 -> -22.3706 | AE31: E | AF31: C | AG31: 2 (70 dB)
B32: 165/65R13 | C32: 1552092 | D32: 77 | E32: T | G32: SPORTIVA | H32: T65 | J32: 4 | K32: 4 | N32: 0 | R32: 36.28 | T32: 23.9448 | W32: 65 | Y32: 0 | Z32: 0 | AC32: -1.027145769 | AD32: -24.5948 | AE32: E | AF32: C | AG32: 2 (70 dB)
B33: 175/65R13 | C33: 1540428 | D33: 80 | E33: T | G33: BARUM | H33: BRILLANTIS 2 | I33: 4+1SP | J33: 4 | K33: 4 | M33: 8 | N33: 8 | R33: 39.66 | T33: 26.1756 | U33: 26.39 | W33: 68 | Y33: 0 | Z33: 0 | AC33: -1.024832287 | AD33: -26.8256 | AE33: E | AF33: C | AG33: 2 (70 dB)
B34: 155/65R14 | C34: 1540441 | D34: 75 | E34: T | G34: BARUM | H34: BRILLANTIS 2 | I34: 12 | J34: 8 | K34: 8 | M34: 16 | N34: 20 | R34: 36.28 | T34: 23.9448 | U34: 24.46 | W34: 63 | Y34: 0 | Z34: 0 | AC34: -1.027145769 | AD34: -24.5948 | AE34: E | AF34: C | AG34: 2 (70 dB)
B35: 165/65R14 | C35: 1540387 | D35: 79 | E35: T | G35: BARUM | H35: BRILLANTIS 2 | M35: 4 | N35: 0 | R35: 33.33 | T35: 21.9978 | W35: 65 | Y35: 0 | Z35: 0 | AC35: -1.029548409 | AD35: -22.6478 | AE35: E | AF35: C | AG35: 2 (70 dB)
B36: 175/65R14 | C36: 1540491 | D36: 82 | E36: T | G36: BARUM | H36: BRILLANTIS 2 | I36: 14 | J36: 412+4SP+4NX | K36: 361+4+4 | M36: 147+106 | N36: 300 | R36: 35.02 | T36: 23.1132 | U36: 23.3 | W36: 60 | Y36: 0 | Z36: 0 | AC36: -1.028122458 | AD36: -23.7632 | AE36: E | AF36: C | AG36: 2 (70 dB)
C37: 3410050 | D37: 82 | E37: T | G37: GISLAVED | H37: URBAN SPEED | I37: 8 | J37: 48 | K37: 40 | M37: 34 | N37: 20 | R37: 35.43 | T37: 23.3838 | U37: 23.58 | W37: 65 | Y37: =X37/1.2 -> 0 | Z37: =X37*Z$6 -> 0 | AC37: =(Y37*Z$6-0.65-T37)/T37 -> -1.027797022 | AD37: =Y37*Z$6-0.65-T37 -> -24.0338 | AE37: E | AF37: C | AG37: 2 (70 dB)
C38: 1540393 | D38: 86 | E38: T | F38: XL | G38: BARUM | H38: BRILLANTIS 2 | N38: 0 | R38: 42.61 | T38: 28.1226 | W38: 75 | Y38: 0 | Z38: 0 | AC38: =(Y38*Z$4-0.65-T38)/T38 -> -1.023113083 | AD38: =Y38*Z$4-0.65-T38 -> -28.7726 | AE38: E | AF38: C | AG38: 2 (71 dB)
B39: 185/65R14 | C39: 1551872 | D39: 86 | E39: T | G39: SPORTIVA | H39: COMPACT | J39: 18 | K39: 18 | M39: 84 | N39: 200 | R39: 37.07 | T39: 24.4662 | W39: 65 | Y39: 0 | Z39: 0 | AC39: =(Y39*Z$4-0.65-U39)/U39 ->  | AD39: =Y39*Z$4-0.65-U39 -> -0.65 | AE39: E | AF39: C | AG39: 2 (70 dB)
C40: 1540493 | D40: 86 | E40: T | G40: BARUM | H40: BRILLANTIS 2 | I40: 4+4 | J40: 175 | K40: 127 | M40: 68 | R40: 37.97 | T40: 25.0602 | U40: 27.11 | W40: 65 | Y40: 0 | Z40: =X40*Z$4 -> 0 | AC40: =(Y40*Z$4-0.65-T40)/T40 -> -1.025937542 | AD40: =Y40*Z$4-0.65-T40 -> -25.7102 | AE40: E | AF40: C | AG40: 2 (70 dB)
C41: 3411610 | D41: 86 | E41: H | G41: GISLAVED | H41: URBAN SPEED | I41: 4 | J41: 12 | K41: 12 | M41: 15 | N41: 12 | R41: 38.17 | T41: 25.1922 | U41: 30.79 | W41: 73 | Y41: =X41/1.2 -> 0 | Z41: =X41*Z$6 -> 0 | AC41: =(Y41*Z$6-0.65-T41)/T41 -> -1.025801637 | AD41: =Y41*Z$6-0.65-T41 -> -25.8422 | AE41: E | AF41: C | AG41: 2 (70 dB)
B42: 195/65R14 | C42: 1540429 | D42: 89 | E42: H | G42: BARUM | H42: BRILLANTIS 2 | N42: 0 | R42: 62.44 | T42: 41.2104 | W42: 110 | Y42: 0 | Z42: 0 | AC42: =(Y42*Z$4-0.65-T42)/T42 -> -1.015772718 | AD42: =Y42*Z$4-0.65-T42 -> -41.8604 | AE42: E | AF42: C | AG42: 2 (71 dB)
B43: 165/65R15 | C43: 1540444 | D43: 81 | E43: T | G43: BARUM | H43: BRILLANTIS 2 | N43: 0 | R43: 45.99 | T43: 30.3534 | W43: 80 | Y43: 0 | Z43: 0 | AC43: =(Y43*Z$4-0.65-T43)/T43 -> -1.021414405 | AD43: =Y43*Z$4-0.65-T43 -> -31.0034 | AE43: E | AF43: C | AG43: 2 (70 dB)
B44: 175/65R15 | C44: 1540446 | D44: 84 | E44: T | G44: BARUM | H44: BRILLANTIS 2 | I44: 14 | J44: 4 | M44: 14 | N44: 20 | R44: 43.03 | T44: 28.3998 | U44: 31.36 | W44: 75 | Y44: 0 | Z44: 0 | AC44: =(Y44*Z$4-0.65-U44)/U44 -> -1.020727041 | AD44: =Y44*Z$4-0.65-U44 -> -32.01 | AE44: E | AF44: C | AG44: 2 (70 dB)
B45: 185/65R15 | C45: 1540405 | D45: 88 | E45: T | G45: BARUM | H45: BRILLANTIS 2 | I45: 19 | J45: 296 | K45: 238 | M45: 190+64 | N45: 300 | R45: 41.35 | T45: 27.291 | U45: 27.52 | W45: 70 | Y45: 0 | Z45: 0 | AC45: =(Y45*Z$4-0.65-T45)/T45 -> -1.023817376 | AD45: =Y45*Z$4-0.65-T45 -> -27.941 | AE45: E | AF45: E | AG45: 2 (70 dB)
C46: 3411230 | D46: 88 | E46: T | G46: GISLAVED | H46: URBAN SPEED | I46: 12 | J46: 36 | K46: 26 | M46: 41 | N46: 32 | R46: 41.64 | T46: 27.4824 | U46: 27.71 | W46: 78 | Y46: =X46/1.2 -> 0 | Z46: =X46*Z$6 -> 0 | AC46: =(Y46*Z$6-0.65-T46)/T46 -> -1.023651501 | AD46: =Y46*Z$6-0.65-T46 -> -28.1324 | AE46: E | AF46: C | AG46: 2 (70 dB)
C47: 1540337 | D47: 92 | E47: T | F47: XL | G47: BARUM | H47: BRILLANTIS 2 | J47: 20 | K47: 20 | M47: 4 | R47: 48.94 | T47: 32.3004 | W47: 85 | Y47: 0 | Z47: 0 | AC47: =(Y47*Z$4-0.65-T47)/T47 -> -1.02012359 | AD47: =Y47*Z$4-0.65-T47 -> -32.9504 | AE47: F | AF47: E | AG47: 3 (72 dB)
B48: 195/65R15 | C48: 1552061 | D48: 91 | E48: H | G48: SPORTIVA | H48: SUPER Z | J48: 218 | K48: 194 | M48: 43+79 | N48: 900 | R48: 41.37 | T48: 27.3042 | W48: 68 | Y48: 0 | Z48: 0 | AC48: =(Y48*Z$4-0.65-T48)/T48 -> -1.023805861 | AD48: =Y48*Z$4-0.65-T48 -> -27.9542 | AE48: E | AF48: C | AG48: 2 (71 dB)
C49: 1540487 | D49: 91 | E49: T | G49: BARUM | H49: BRILLANTIS 2 | I49: 12 | J49: 598 | K49: 389 | M49: 298 | R49: 44.3 | T49: 29.238 | U49: 29.49 | W49: 73 | Y49: =X49/1.2 -> 0 | Z49: 0 | AC49: =(Y49*Z$4-0.65-T49)/T49 -> -1.022231343 | AD49: =Y49*Z$4-0.65-T49 -> -29.888 | AE49: E | AF49: C | AG49: 2 (71 dB)
C50: 1540328 | D50: 91 | E50: H | G50: BARUM | H50: BRAVURIS 2 | J50: 68+41BRL2H+28V | K50: 64+13+28V | M50: 167 | T50: 0 | W50: 80 | Y50: 0 | Z50: =X50*Z$4 -> 0 | AC50: =(Y50*Z$4-0.65-U50)/U50 ->  | AD50: =Y50*Z$4-0.65-U50 -> -0.65 | AE50: E | AF50: C | AG50: 2 (71 dB)
C51: 3411270 | D51: 91 | E51: H | G51: GISLAVED | H51: ULTRA SPEED | J51: 140 | K51: 100 | M51: 62 | R51: 42.9 | T51: 28.314 | W51: 80 | Y51: =X51/1.2 -> 0 | Z51: =X51*Z$6 -> 0 | AC51: =(Y51*Z$6-0.65-T51)/T51 -> -1.022956841 | AD51: =Y51*Z$6-0.65-T51 -> -28.964 | AE51: E | AF51: C | AG51: 2 (71 dB)
C52: 1540406 | D52: 95 | E52: T | F52: XL | G52: BARUM | H52: BRILLANTIS 2 | I52: 4 | J52: 29 | K52: 19 | M52: 24 | N52: 20 | R52: 51.05 | T52: 33.693 | U52: 33.97 | W52: 85 | Y52: 0 | Z52: 0 | AC52: =(Y52*Z$4-0.65-T52)/T52 -> -1.019291841 | AD52: =Y52*Z$4-0.65-T52 -> -34.343 | AE52: E | AF52: C | AG52: 2 (71 dB)
B53: 205/65R15 | D53: 94 | E53: H | G53: NORDEXX | H53: CIRRUS | J53: 40 | P53: 75 | T53: 31.56 | W53: 75 | X53: 80 | Y53: =X53/1.2 -> 66.66666667 | Z53: =X53*Z$6 -> 46.4 | AC53: =(Y53*Z$6-0.75-T53)/T53 -> 0.2014152936 | AD53: =Y53*Z$6-0.75-T53 -> 6.356666667 | AE53: C | AF53: C | AG53: 3 (73 dB)
C54: 1540499 | D54: 94 | E54: H | G54: BARUM | H54: BRAVURIS 2 | I54: 1V | J54: 129 | K54: 106 | M54: 106 | N54: 125 | R54: 59.91 | T54: 39.5406 | U54: 42.83 | W54: 95 | Y54: 0 | Z54: 0 | AC54: =(Y54*Z$4-0.65-T54)/T54 -> -1.0164388 | AD54: =Y54*Z$4-0.65-T54 -> -40.1906 | AE54: E | AF54: C | AG54: 2 (71 dB)
C55: 3411540 | D55: 94 | E55: V | G55: GISLAVED | H55: ULTRA SPEED | J55: 42 | K55: 34 | M55: 22 | N55: 20 | R55: 61.85 | T55: =R55*T$4 -> 42.4291 | W55: 105 | Y55: 0 | Z55: =X55*Z$6 -> 0 | AC55: =(Y55*Z$6-0.65-T55)/T55 -> -1.015319674 | AD55: =Y55*Z$6-0.65-T55 -> -43.0791 | AE55: E | AF55: C | AG55: 2 (71 dB)
B56: 215/65R15 | C56: 1540173 | D56: 96 | E56: H | G56: BARUM | H56: BRAVURIS 2 | I56: 6 | J56: 36 | K56: 22 | M56: 12 | N56: 32 | R56: 65.39 | T56: =R56*T$5 -> 43.1574 | U56: 43.51 | W56: 110 | Y56: 0 | Z56: 0 | AC56: =(Y56*Z$4-0.65-U56)/U56 -> -1.014939094 | AD56: =Y56*Z$4-0.65-U56 -> -44.16 | AE56: E | AF56: C | AG56: 2 (71 dB)
B57: Profiil 60
B58: 185/60R13 | C58: 1540448 | D58: 80 | E58: H | G58: BARUM | H58: BRILLANTIS 2 | I58: 4 | M58: 4 | N58: 4 | R58: 41.35 | T58: =R58*T$5 -> 27.291 | U58: 27.52 | W58: 75 | Y58: 0 | Z58: =X58*Z$4 -> 0 | AC58: =(Y58*Z$4-0.65-T58)/T58 -> -1.023817376 | AD58: =Y58*Z$4-0.65-T58 -> -27.941 | AE58: F | AF58: C | AG58: 2 (70 dB)
B59: 165/60R14 | C59: 1540449 | D59: 75 | E59: T | G59: BARUM | H59: BRILLANTIS 2 | N59: 0 | R59: 43.88 | T59: =R59*T$5 -> 28.9608 | W59: 80 | Y59: 0 | Z59: 0 | AC59: =(Y59*Z$4-0.65-T59)/T59 -> -1.022444131 | AD59: =Y59*Z$4-0.65-T59 -> -29.6108 | AE59: E | AF59: C | AG59: 2 (70 dB)
B60: 175/60R14 | C60: 1540438 | D60: 79 | E60: H | G60: BARUM | H60: BRILLANTIS 2 | N60: 0 | R60: 48.52 | T60: 32.0232 | W60: 85 | Y60: 0 | Z60: 0 | AC60: =(Y60*Z$4-0.65-T60)/T60 -> -1.020297784 | AD60: =Y60*Z$4-0.65-T60 -> -32.6732 | AE60: F | AF60: C | AG60: 2 (70 dB)
B61: 185/60R14 | C61: 1551866 | D61: 82 | E61: H | G61: SPORTIVA | H61: COMPACT | I61: 4 | J61: 4 | M61: 10 | N61: 50 | R61: 35.18 | T61: 23.2188 | U61: 25.11 | W61: 60 | Y61: 0 | Z61: 0 | AC61: =(Y61*Z$4-0.65-U61)/U61 -> -1.025886101 | AD61: =Y61*Z$4-0.65-U61 -> -25.76 | AE61: E | AF61: C | AG61: 2 (70 dB)
C62: 1540459 | D62: 82 | E62: T | G62: BARUM | H62: BRILLANTIS 2 | I62: 6 | J62: 39 | K62: 24 | M62: 43 | R62: 38.39 | T62: 25.3374 | U62: 25.27 | W62: 65 | Y62: 0 | Z62: 0 | AC62: =(Y62*Z$4-0.65-T62)/T62 -> -1.025653777 | AD62: =Y62*Z$4-0.65-T62 -> -25.9874 | AE62: E | AF62: C | AG62: 2 (70 dB)
B63: 195/60R14 | C63: 1540175 | D63: 86 | E63: H | G63: BARUM | H63: BRILLANTIS 2 | I63: 4 | J63: 2 | K63: 2 | M63: 2 | N63: 8 | R63: 48.52 | T63: 32.0232 | U63: 33.37 | W63: 83 | Y63: 0 | Z63: 0 | AC63: =(Y63*Z$4-0.65-U63)/U63 -> -1.019478574 | AD63: =Y63*Z$4-0.65-U63 -> -34.02 | AE63: E | AF63: C | AG63: 2 (71 dB)
B64: 175/60R15 | C64: 1540445 | D64: 81 | E64: H | G64: BARUM | H64: BRILLANTIS 2 | I64: 4 | J64: 8 | K64: 8 | M64: 4 | N64: 8 | R64: 56.53 | T64: 37.3098 | U64: 37.62 | W64: 90 | Y64: 0 | Z64: 0 | AC64: =(Y64*Z$4-0.65-U64)/U64 -> -1.017278044 | AD64: =Y64*Z$4-0.65-U64 -> -38.27 | AE64: F | AF64: C | AG64: 2 (70 dB)
A65: UUS! | B65: 185/60R15 | D65: 88 | E65: H | G65: NORDEXX | H65: NS5000 | P65: 50 | T65: 23.83 | X65: 65 | Y65: =X65/1.2 -> 54.16666667 | Z65: =X65*Z$6 -> 37.7 | AC65: =(Y65*Z$6-0.75-T65)/T65 -> 0.2868932718 | AD65: =Y65*Z$6-0.75-T65 -> 6.836666667
C66: 1540176 | D66: 88 | E66: H | F66: XL | G66: BARUM | H66: BRILLANTIS 2 | I66: 8 | J66: 55+11 | K66: 46+11 | M66: 42+8 | N66: 40 | R66: 54.85 | T66: 36.201 | U66: 36.5 | W66: 90 | Y66: 0 | Z66: 0 | AC66: =(Y66*Z$4-0.65-T66)/T66 -> -1.017955305 | AD66: =Y66*Z$4-0.65-T66 -> -36.851 | AE66: E | AF66: C | AG66: 2 (71 dB)
B67: 195/60R15 | D67: 88 | E67: H | G67: NORDEXX | H67: CIRRUS | J67: 40 | K67: 16 | T67: 25.37 | W67: 65 | Y67: =X67/1.2 -> 0 | Z67: =X67*Z$6 -> 0 | AC67: =(Y67*Z$6-0.65-T67)/T67 -> -1.025620812 | AD67: =Y67*Z$6-0.65-T67 -> -26.02 | AE67: E | AF67: E | AG67: 3 (73 dB)
A68: UUS! | D68: 88 | E68: H | G68: NORDEXX | H68: NS3000 | P68: 75 | T68: 25.05 | X68: 65 | Y68: =X68/1.2 -> 54.16666667 | Z68: =X68*Z$6 -> 37.7 | AC68: =(Y68*Z$6-0.75-T68)/T68 -> 0.2242182302 | AD68: =Y68*Z$6-0.75-T68 -> 5.616666667
C69: 1552066 | D69: 88 | E69: H | G69: SPORTIVA | H69: SUPER Z | J69: 8 | K69: 8 | M69: 6 | N69: 125 | R69: 46.39 | T69: 30.6174 | W69: 80 | Y69: 0 | Z69: 0 | AC69: =(Y69*Z$4-0.65-U69)/U69 ->  | AD69: =Y69*Z$4-0.65-U69 -> -0.65 | AE69: E | AF69: C | AG69: 2 (71 dB)
C70: 1540177 | D70: 88 | E70: H | G70: BARUM | H70: BRAVURIS 2 | I70: 8 | J70: 134 | K70: 78 | M70: 99 | R70: 50.63 | T70: 33.4158 | U70: 33.86 | W70: 83 | Y70: 0 | Z70: 0 | AC70: =(Y70*Z$4-0.65-T70)/T70 -> -1.019451876 | AD70: =Y70*Z$4-0.65-T70 -> -34.0658 | AE70: E | AF70: C | AG70: 2 (71 dB)
C71: 3411580 | D71: 88 | E71: H | G71: GISLAVED | H71: ULTRA SPEED | J71: 20 | K71: 20 | M71: 10 | R71: 48.03 | T71: 31.6998 | W71: 90 | Y71: =X71/1.2 -> 0 | Z71: =X71*Z$6 -> 0 | AC71: =(Y71*Z$6-0.65-U71)/U71 ->  | AD71: =Y71*Z$6-0.65-U71 -> -0.65 | AE71: E | AF71: C | AG71: 2 (71 dB)
B72: 205/60R15 | C72: 1540508 | D72: 91 | E72: H | G72: BARUM | H72: BRAVURIS 2 | I72: 4+2SPRZ | J72: 45+2SP | K72: 24+2SP | M72: 41+4US+22SP | N72: 75 | R72: 54.42 | T72: 35.9172 | U72: 36.3 | W72: 88 | Y72: =X72/1.2 -> 0 | Z72: 0 | AC72: =(Y72*Z$4-0.65-T72)/T72 -> -1.018097179 | AD72: =Y72*Z$4-0.65-T72 -> -36.5672 | AE72: E | AF72: C | AG72: 2 (71 dB)
B73: 215/60R15 | C73: 1540500 | D73: 94 | E73: H | G73: BARUM | H73: BRAVURIS 2 | I73: 4 | M73: 12 | N73: 8 | R73: 69.61 | T73: 45.9426 | U73: 46.32 | W73: 115 | Y73: 0 | Z73: 0 | AC73: =(Y73*Z$4-0.65-T73)/T73 -> -1.014148089 | AD73: =Y73*Z$4-0.65-T73 -> -46.5926 | AE73: E | AF73: C | AG73: 2 (71 dB)
B74: 225/60R15 | C74: 1540361 | D74: 96 | E74: V | G74: BARUM | H74: BRAVURIS 2 | J74: 6 | K74: 6 | M74: 8 | N74: 4 | R74: 79.74 | T74: =R74*T$4 -> 54.70164 | W74: 135 | Y74: 0 | Z74: 0 | AC74: =(Y74*Z$4-0.65-T74)/T74 -> -1.011882642 | AD74: =Y74*Z$4-0.65-T74 -> -55.35164 | AE74: E | AF74: C | AG74: 2 (71 dB)
B75: 205/60R16 | C75: 20540168710 | D75: 92 | E75: V | G75: NORDEXX | H75: CIRRUS | I75: 22 | J75: 18 | T75: 33.58 | U75: 33.58 | W75: 83 | X75: 75 | Y75: 62.5 | Z75: =X75*Z$6 -> 43.5 | AC75: =(Y75*Z$6-0.65-T75)/T75 -> 0.06015485408 | AD75: =Y75*Z$6-0.65-T75 -> 2.02 | AE75: C | AF75: C | AG75: 3 (73 dB)
D76: 96 | E76: V | F76: XL | G76: NORDEXX | H76: NS5000 | P76: 50 | T76: 29.6 | X76: 80 | Y76: =X76/1.2 -> 66.66666667 | Z76: =X76*Z$6 -> 46.4 | AC76: =(Y76*Z$6-0.75-T76)/T76 -> 0.2809684685 | AD76: =Y76*Z$6-0.75-T76 -> 8.316666667
C77: 1551837 | D77: 92 | E77: H | G77: GENERAL TIRE | H77: ALTIMAX HP | I77: 2 | J77: 22 | K77: 10 | M77: 8 | N77: 100 | T77: 0 | U77: 47.61 | W77: 105 | Y77: 0 | Z77: 0 | AC77: =(Y77*Z$4-0.65-U77)/U77 -> -1.013652594 | AD77: =Y77*Z$4-0.65-U77 -> -48.26 | AE77: E | AF77: C | AG77: 2 (71 dB)
C78: 1540182 | D78: 92 | E78: H | G78: BARUM | H78: BRAVURIS 2 | I78: 10 | J78: 97 | K78: 75 | M78: 52 | R78: 70.88 | T78: =R78*T$5 -> 46.7808 | U78: 47.17 | W78: 115 | Y78: 0 | Z78: 0 | AC78: =(Y78*Z$4-0.65-T78)/T78 -> -1.013894589 | AD78: =Y78*Z$4-0.65-T78 -> -47.4308 | AE78: E | AF78: C | AG78: 2 (71 dB)
C79: 3411590 | D79: 92 | E79: V | G79: GISLAVED | H79: ULTRA SPEED | J79: 38 | K79: 20 | M79: 12 | R79: 74.46 | T79: 51.07956 | W79: 125 | Y79: 0 | Z79: =X79*Z$6 -> 0 | AC79: =(Y79*Z$6-0.65-T79)/T79 -> -1.012725247 | AD79: =Y79*Z$6-0.65-T79 -> -51.72956 | AE79: E | AF79: C | AG79: 2 (71 dB)
A80: UUS! | B80: 215/60R16 | D80: 99 | E80: V | F80: XL | G80: NORDEXX | H80: NS3000 | P80: 50 | T80: 31.77 | X80: 85 | Y80: =X80/1.2 -> 70.83333333 | Z80: =X80*Z$6 -> 49.3 | AC80: =(Y80*Z$6-0.75-T80)/T80 -> 0.2695414962 | AD80: =Y80*Z$6-0.75-T80 -> 8.563333333
C81: 1540380 | D81: 99 | E81: H | F81: XL | G81: BARUM | H81: BRAVURIS 2 | I81: 4 | J81: 85 | K81: 64 | M81: 40 | N81: 75 | R81: 83.54 | T81: =R81*T$5 -> 55.1364 | U81: 55.59 | W81: 135 | Y81: 0 | Z81: 0 | AC81: =(Y81*Z$4-0.65-T81)/T81 -> -1.011788945 | AD81: =Y81*Z$4-0.65-T81 -> -55.7864 | AE81: E | AF81: C | AG81: 2 (72 dB)
C82: 3411600 | D82: 99 | E82: V | F82: XL | G82: GISLAVED | H82: ULTRA SPEED | I82: 7 | J82: 35 | K82: 16 | M82: 20 | R82: 81.96 | T82: 56.22456 | U82: 56.22 | W82: 145 | Y82: 0 | Z82: =X82*Z$6 -> 0 | AC82: =(Y82*Z$6-0.65-T82)/T82 -> -1.011560784 | AD82: =Y82*Z$6-0.65-T82 -> -56.87456 | AE82: E | AF82: C | AG82: 2 (71 dB)
B83: 225/60R16 | C83: 1540303 | D83: 98 | E83: W | G83: BARUM | H83: BRAVURIS | I83: 2 | J83: 4 | M83: 4 | N83: 4 | R83: 99.31 | T83: 68.12666 | U83: 72.31 | W83: 175 | Y83: 0 | Z83: 0 | AC83: =(Y83*Z$4-0.65-U83)/U83 -> -1.008989075 | AD83: =Y83*Z$4-0.65-U83 -> -72.96 | AE83: E | AF83: C | AG83: 3 (72 dB)
B84: 235/60R16 | C84: 1540365 | D84: 100 | E84: W | G84: BARUM | H84: BRAVURIS 2 | N84: 0 | R84: 117.8 | T84: 80.8108 | W84: 195 | Y84: 0 | Z84: 0 | AC84: =(Y84*Z$4-0.65-T84)/T84 -> -1.008043479 | AD84: =Y84*Z$4-0.65-T84 -> -81.4608 | AE84: E | AF84: C | AG84: 2 (71 dB)
B85: Profiil 55
B86: 185/55R14 | C86: 1540539 | D86: 80 | E86: H | G86: BARUM | H86: BRAVURIS 3 HM | N86: 0 | R86: 54.42 | T86: =R86*T$5 -> 35.9172 | W86: 95 | Y86: =X86/1.2 -> 0 | Z86: =X86*Z$4 -> 0 | AC86: =(Y86*Z$4-0.65-T86)/T86 -> -1.018097179 | AD86: =Y86*Z$4-0.65-T86 -> -36.5672 | AE86: E | AF86: C | AG86: 2 (70 dB)
B87: 175/55R15 | C87: 1540586 | D87: 77 | E87: T | G87: BARUM | H87: BRAVURIS 3 HM | N87: 0 | R87: 48.52 | T87: =R87*T$5 -> 32.0232 | W87: 85 | Y87: 0 | Z87: 0 | AC87: =(Y87*Z$4-0.65-T87)/T87 -> -1.020297784 | AD87: =Y87*Z$4-0.65-T87 -> -32.6732 | AE87: E | AF87: C | AG87: 2 (70 dB)
B88: 185/55R15 | C88: 1540529 | D88: 82 | E88: H | G88: BARUM | H88: BRAVURIS 3 HM | I88: 14+4BRV2 | J88: 26 | K88: 24 | M88: 42 | N88: 32 | R88: 53.58 | T88: =R88*T$5 -> 35.3628 | U88: 35.65 | W88: 88 | Y88: 0 | Z88: 0 | AC88: =(Y88*Z$4-0.65-T88)/T88 -> -1.018380897 | AD88: =Y88*Z$4-0.65-T88 -> -36.0128 | AE88: E | AF88: C | AG88: 2 (70 dB)
B89: 195/55R15 | C89: 1954515871 | D89: 85 | E89: V | G89: NORDEXX | H89: CIRRUS | I89: 1 | K89: 15 | N89: 19 | T89: 26.82 | U89: 26.82 | W89: 68 | X89: 60 | Y89: 50 | Z89: =X89*Z$6 -> 34.8 | AC89: =(Y89*Z$6-0.65-T89)/T89 -> 0.05704697987 | AD89: =Y89*Z$6-0.65-T89 -> 1.53 | AE89: E | AF89: E | AG89: 3 (73 dB)
D90: 85 | E90: V | G90: NORDEXX | H90: NS5000 | P90: 50 | T90: 23.6 | X90: 65 | Y90: =X90/1.2 -> 54.16666667 | Z90: =X90*Z$6 -> 37.7 | AC90: =(Y90*Z$6-0.75-T90)/T90 -> 0.2994350282 | AD90: =Y90*Z$6-0.75-T90 -> 7.066666667
C91: 1540477 | D91: 85 | E91: V | G91: BARUM | H91: BRAVURIS 2 | J91: 23 | K91: 22 | M91: 70 | N91: 75 | T91: 0 | W91: 100 | Y91: 0 | Z91: 0 | AC91: =(Y91*Z$4-0.65-U91)/U91 ->  | AD91: =Y91*Z$4-0.65-U91 -> -0.65 | AE91: F | AF91: C | AG91: 2 (71 dB)
C92: 1540555 | D92: 85 | E92: V | G92: BARUM | H92: BRAVURIS 3 HM | I92: 8 | J92: 98 | K92: 68 | R92: 60.33 | T92: 41.38638 | U92: 41.39 | W92: 100 | Y92: 0 | Z92: 0 | AC92: =(Y92*Z$4-0.65-T92)/T92 -> -1.01570565 | AD92: =Y92*Z$4-0.65-T92 -> -42.03638 | AE92: E | AF92: C | AG92: 2 (71 dB)
B93: 205/55R15 | C93: 1540189 | D93: 88 | E93: V | G93: BARUM | H93: BRAVURIS 2 | J93: 4 | N93: 0 | R93: 70.46 | T93: 48.33556 | W93: 125 | Y93: 0 | Z93: 0 | AC93: =(Y93*Z$4-0.65-T93)/T93 -> -1.013447656 | AD93: =Y93*Z$4-0.65-T93 -> -48.98556 | AE93: E | AF93: C | AG93: 2 (71 dB)
B94: 195/55R16 | C94: 1540543 | D94: 87 | E94: V | G94: BARUM | H94: BRAVURIS 3 HM | I94: 8 | J94: 6+13 | K94: 6+10 | M94: 19 | N94: 20 | R94: 62.44 | T94: 42.83384 | U94: 42.83 | W94: 105 | Y94: 0 | Z94: 0 | AC94: =(Y94*Z$4-0.65-T94)/T94 -> -1.015174918 | AD94: =Y94*Z$4-0.65-T94 -> -43.48384 | AE94: E | AF94: C | AG94: 2 (71 dB)
B95: 205/55R16 | C95: 2054516871 | D95: 91 | E95: V | G95: NORDEXX | H95: STRATUS | I95: 163 | J95: 108 | T95: 30.48 | U95: 30.48 | W95: 75 | X95: 70 | Y95: 58.33333333 | Z95: =X95*Z$6 -> 40.6 | AC95: =(Y95*Z$6-0.65-T95)/T95 -> 0.0886920385 | AD95: =Y95*Z$6-0.65-T95 -> 2.703333333 | AE95: C | AF95: C | AG95: 3 (73 dB)
D96: 91 | E96: V | G96: NORDEXX | H96: NS9000 | P96: 100 | T96: 28.84 | X96: 75 | Y96: =X96/1.2 -> 62.5 | Z96: =X96*Z$6 -> 43.5 | AC96: =(Y96*Z$6-0.75-T96)/T96 -> 0.2309292649 | AD96: =Y96*Z$6-0.75-T96 -> 6.66
C97: 1552139 | D97: 91 | E97: H | G97: SPORTIVA | H97: SUPER Z | I97: 1 | J97: 216 | K97: 170 | M97: 193 | N97: 1000 | R97: 52.58 | T97: =R97*T$5 -> 34.7028 | U97: 34.98 | W97: 85 | Y97: 0 | Z97: 0 | AC97: =(Y97*Z$4-0.65-T97)/T97 -> -1.018730477 | AD97: =Y97*Z$4-0.65-T97 -> -35.3528 | AE97: E | AF97: C | AG97: 2 (71 dB)
C98: 1540526 | D98: 91 | E98: V | G98: BARUM | H98: BRAVURIS 3 HM | I98: 9 | J98: 904+70H | K98: 768 | M98: 320+158 | R98: 57.38 | T98: 39.36268 | U98: 39.36 | W98: 95 | Y98: 0 | Z98: 0 | AC98: =(Y98*Z$4-0.65-T98)/T98 -> -1.016513103 | AD98: =Y98*Z$4-0.65-T98 -> -40.01268 | AE98: E | AF98: C | AG98: 2 (71 dB)
C99: 3410290 | D99: 91 | E99: V | G99: GISLAVED | H99: ULTRA SPEED | J99: 167 | K99: 113 | M99: 120 | R99: 56.47 | T99: 38.73842 | W99: 103 | Y99: 0 | Z99: =X99*Z$6 -> 0 | AC99: =(Y99*Z$6-0.65-T99)/T99 -> -1.016779208 | AD99: =Y99*Z$6-0.65-T99 -> -39.38842 | AE99: E | AF99: C | AG99: 2 (71 dB)
C100: 1540565 | D100: 94 | E100: V | F100: XL | G100: BARUM | H100: BRAVURIS 3 HM | I100: 2 | J100: 8 | K100: 6 | M100: 8 | N100: 8 | R100: 63.28 | T100: 43.41008 | U100: 43.41 | W100: 110 | Y100: 0 | Z100: 0 | AC100: =(Y100*Z$4-0.65-T100)/T100 -> -1.014973481 | AD100: =Y100*Z$4-0.65-T100 -> -44.06008 | AE100: E | AF100: C | AG100: 2 (72 dB)
B101: 215/55R16 | D101: 97 | E101: W | F101: XL | G101: NORDEXX | H101: STRATUS | J101: 40 | T101: 33.22 | W101: 83 | Y101: =X101/1.2 -> 0 | Z101: =X101*Z$6 -> 0 | AC101: =(Y101*Z$6-0.65-T101)/T101 -> -1.019566526 | AD101: =Y101*Z$6-0.65-T101 -> -33.87 | AE101: C | AF101: C | AG101: 3 (73 dB)
G102: NORDEXX | H102: NS9000 | P102: 75 | T102: 31.73 | X102: 85 | Y102: =X102/1.2 -> 70.83333333 | Z102: =X102*Z$6 -> 49.3 | AC102: =(Y102*Z$6-0.75-T102)/T102 -> 0.2711419267 | AD102: =Y102*Z$6-0.75-T102 -> 8.603333333
C103: 1551846 | D103: 93 | E103: V | G103: GENERAL TIRE | H103: ALTIMAX HP | J103: 18 | K103: 18 | M103: 14 | N103: 100 | T103: 0 | W103: 125 | Y103: 0 | Z103: 0 | AC103: =(Y103*Z$4-0.65-U103)/U103 ->  | AD103: =Y103*Z$4-0.65-U103 -> -0.65 | AE103: E | AF103: C | AG103: 2 (71 dB)
C104: 1540329 | D104: 93 | E104: H | G104: BARUM | H104: BRAVURIS 2 | I104: 2 | J104: 24 | K104: 24 | M104: 51+21 | R104: 83.54 | T104: 57.30844 | U104: 65.25 | W104: 135 | Y104: 0 | Z104: 0 | AC104: =(Y104*Z$4-0.65-U104)/U104 -> -1.009961686 | AD104: =Y104*Z$4-0.65-U104 -> -65.9 | AE104: E | AF104: C | AG104: 2 (71 dB)
C105: 1540535 | D105: 93 | E105: V | G105: BARUM | H105: BRAVURIS 3 HM | I105: 4 | J105: 118 | K105: 80 | R105: 83.54 | T105: 57.30844 | U105: 57.31 | W105: 140 | Y105: 0 | Z105: 0 | AC105: =(Y105*Z$4-0.65-T105)/T105 -> -1.011342134 | AD105: =Y105*Z$4-0.65-T105 -> -57.95844 | AE105: E | AF105: C | AG105: 2 (71 dB)
C106: 3410390 | D106: 97 | E106: Y | F106: XL, FR | G106: GISLAVED | H106: ULTRA SPEED | J106: 12+4 BRV3 | K106: 8+4B | M106: 16 | R106: 94.48 | T106: 64.81328 | W106: 155 | Y106: 0 | Z106: =X106*Z$6 -> 0 | AC106: =(Y106*Z$6-0.65-T106)/T106 -> -1.010028809 | AD106: =Y106*Z$6-0.65-T106 -> -65.46328 | AE106: E | AF106: C | AG106: 2 (71 dB)
B107: 225/55R16 | C107: 2254516871 | D107: 99 | E107: W | F107: XL | G107: NORDEXX | H107: STRATUS | I107: 24 | J107: 8 | T107: 35.7 | U107: 35.7 | W107: 88 | X107: 85 | Y107: =X107/1.2 -> 70.83333333 | Z107: =X107*Z$6 -> 49.3 | AC107: =(Y107*Z$6-0.75-T107)/T107 -> 0.1297852474 | AD107: =Y107*Z$6-0.75-T107 -> 4.633333333 | AE107: C | AF107: C | AG107: 3 (73 dB)
D108: 99 | E108: W | F108: XL | G108: NORDEXX | H108: NS9000 | P108: 20 | T108: 35.69 | X108: 90 | Y108: =X108/1.2 -> 75 | Z108: =X108*Z$6 -> 52.2 | AC108: =(Y108*Z$6-0.75-T108)/T108 -> 0.1978145139 | AD108: =Y108*Z$6-0.75-T108 -> 7.06
C109: 1551661 | D109: 95 | E109: V | G109: GENERAL TIRE | H109: ALTIMAX UHP | I109: 8 | N109: 75 | T109: 0 | U109: 61.56 | W109: 130 | Y109: 0 | Z109: 0 | AC109: =(Y109*Z$4-0.65-U109)/U109 -> -1.010558804 | AD109: =Y109*Z$4-0.65-U109 -> -62.21 | AE109: E | AF109: C | AG109: 2 (71 dB)
C110: 1540331 | D110: 95 | E110: V | G110: BARUM | H110: BRAVURIS 2 | J110: 30 | K110: 26 | M110: 30 | T110: 0 | W110: 140 | Y110: 0 | Z110: 0 | AC110: =(Y110*Z$4-0.65-U110)/U110 ->  | AD110: =Y110*Z$4-0.65-U110 -> -0.65 | AE110: E | AF110: C | AG110: 2 (71 dB)
C111: 1540542 | D111: 95 | E111: V | G111: BARUM | H111: BRAVURIS 3 HM | I111: 5 | J111: 23 | K111: 12 | R111: 88.18 | T111: 60.49148 | U111: 60.49 | W111: 145 | Y111: 0 | Z111: 0 | AC111: =(Y111*Z$4-0.65-T111)/T111 -> -1.010745315 | AD111: =Y111*Z$4-0.65-T111 -> -61.14148 | AE111: E | AF111: C | AG111: 2 (71 dB)
C112: 3410540 | D112: 99 | E112: Y | F112: XL | G112: GISLAVED | H112: ULTRA SPEED | R112: 100.58 | T112: 68.99788 | W112: 175 | Y112: 0 | Z112: =X112*Z$6 -> 0 | AC112: =(Y112*Z$6-0.65-T112)/T112 -> -1.009420579 | AD112: =Y112*Z$6-0.65-T112 -> -69.64788 | AE112: E | AF112: C | AG112: 2 (71 dB)
B113: 215/55R17 | C113: 1540567 | D113: 94 | E113: Y | F113: FR | G113: BARUM | H113: BRAVURIS 3 HM | I113: 6+1BRV2 | J113: 4BRV2+117 | K113: 4+89 | M113: 74 | N113: 100 | R113: 92.86 | T113: 63.70196 | U113: 63.7 | W113: 155 | Y113: 0 | Z113: 0 | AC113: =(Y113*Z$4-0.65-T113)/T113 -> -1.010203768 | AD113: =Y113*Z$4-0.65-T113 -> -64.35196 | AE113: E | AF113: C | AG113: 2 (71 dB)
C114: 3410550 | D114: 94 | E114: W | G114: GISLAVED | H114: ULTRA SPEED | I114: 8 | J114: 45 | K114: 39 | M114: 30 | R114: 85.37 | T114: 58.56382 | U114: 58.57 | W114: 165 | Y114: 0 | Z114: =X114*Z$6 -> 0 | AC114: =(Y114*Z$6-0.65-T114)/T114 -> -1.011099003 | AD114: =Y114*Z$6-0.65-T114 -> -59.21382 | AE114: E | AF114: C | AG114: 2 (71 dB)
A115: UUS! | B115: 225/55R17 | D115: 101 | E115: W | F115: XL | G115: NORDEXX | H115: NS9000 | P115: 50 | T115: 39.75 | X115: 105 | Y115: =X115/1.2 -> 87.5 | Z115: =X115*Z$6 -> 60.9 | AC115: =(Y115*Z$6-0.75-T115)/T115 -> 0.2578616352 | AD115: =Y115*Z$6-0.75-T115 -> 10.25
C116: 1540530 | D116: 101 | E116: Y | F116: XL, FR | G116: BARUM | H116: BRAVURIS 3 HM | I116: 10+1 | J116: 4BRV2+86 | K116: 4+56 | M116: 62 | N116: 75 | R116: 101.03 | T116: 69.30658 | U116: 69.31 | W116: 165 | Y116: 0 | Z116: 0 | AC116: =(Y116*Z$4-0.65-T116)/T116 -> -1.009378619 | AD116: =Y116*Z$4-0.65-T116 -> -69.95658 | AE116: E | AF116: C | AG116: 2 (72 dB)
C117: 3410560 | D117: 101 | E117: W | F117: XL | G117: GISLAVED | H117: ULTRA SPEED | I117: 4 | J117: 20 | K117: 20 | M117: 2 | R117: 92.46 | T117: 63.42756 | U117: 72.62 | W117: 175 | Y117: 0 | Z117: =X117*Z$6 -> 0 | AC117: =(Y117*Z$4-0.65-T117)/T117 -> -1.010247911 | AD117: =Y117*Z$4-0.65-T117 -> -64.07756 | AE117: E | AF117: C | AG117: 2 (71 dB)
B118: 235/55R17 | C118: 1540585 | D118: 103 | E118: Y | F118: XL, FR | G118: BARUM | H118: BRAVURIS 3 HM | I118: 8 | J118: 22 | K118: 22 | R118: 122.1 | T118: 83.7606 | U118: 83.76 | W118: 205 | Y118: 0 | Z118: 0 | AC118: =(Y118*Z$4-0.65-T118)/T118 -> -1.007760212 | AD118: =Y118*Z$4-0.65-T118 -> -84.4106 | AE118: E | AF118: C | AG118: 2 (72 dB)
B119: Profiil 50
B120: 195/50R15 | C120: 1540366 | D120: 82 | E120: H | G120: BARUM | H120: BRAVURIS 2 | J120: 14 | K120: 14 | M120: 16 | N120: 32 | T120: 0 | W120: 70 | Y120: 0 | Z120: =X120*Z$4 -> 0 | AC120: =(Y120*Z$4-0.65-U120)/U120 ->  | AD120: =Y120*Z$4-0.65-U120 -> -0.65 | AE120: F | AF120: C | AG120: 2 (71 dB)
C121: 1540525 | D121: 82 | E121: V | G121: BARUM | H121: BRAVURIS 3 HM | I121: 8 | J121: 16 | K121: 6 | R121: 40.92 | T121: 28.07112 | U121: 28.07 | W121: 70 | Y121: 0 | Z121: 0 | AC121: =(Y121*Z$4-0.65-T121)/T121 -> -1.023155471 | AD121: =Y121*Z$4-0.65-T121 -> -28.72112 | AE121: E | AF121: C | AG121: 2 (71 dB)
B122: 205/50R15 | C122: 1552105 | D122: 86 | E122: V | F122: FR | G122: SPORTIVA | H122: Z50 | I122: 2 | J122: 2 | K122: 2 | N122: 0 | R122: 56.44 | T122: 38.71784 | U122: 36.18 | W122: 95 | Y122: 0 | Z122: 0 | AC122: =(Y122*Z$4-0.65-U122)/U122 -> -1.017965727 | AD122: =Y122*Z$4-0.65-U122 -> -36.83 | AE122: F | AF122: C | AG122: 2 (71 dB)
B123: 195/50R16 | C123: 1540548 | D123: 88 | E123: V | F123: XL | G123: BARUM | H123: BRAVURIS 3 HM | I123: 6+4 | J123: 16 | K123: 12 | M123: 17 | N123: 20 | R123: 79.74 | T123: 54.70164 | U123: 54.7 | W123: 130 | Y123: 0 | Z123: 0 | AC123: =(Y123*Z$4-0.65-T123)/T123 -> -1.011882642 | AD123: =Y123*Z$4-0.65-T123 -> -55.35164 | AE123: E | AF123: C | AG123: 2 (72 dB)
B124: 205/50R16 | C124: 1540193 | D124: 87 | E124: W | G124: BARUM | H124: BRAVURIS 2 | J124: 6 | K124: 6 | M124: 2 | N124: 4 | T124: 0 | W124: 125 | Y124: 0 | Z124: 0 | AC124: =(Y124*Z$4-0.65-U124)/U124 ->  | AD124: =Y124*Z$4-0.65-U124 -> -0.65 | AE124: E | AF124: C | AG124: 2 (71 dB)
C125: 1540595 | D125: 87 | E125: V | G125: BARUM | H125: BRAVURIS 3 HM | I125: 4 | J125: 8 | K125: 4 | R125: 72.99 | T125: 50.07114 | U125: 50.07 | W125: 135 | Y125: 0 | Z125: 0 | AC125: =(Y125*Z$4-0.65-T125)/T125 -> -1.01298153 | AD125: =Y125*Z$4-0.65-T125 -> -50.72114 | AE125: E | AF125: C | AG125: 2 (71 dB)
B126: 225/50R16 | C126: 1540194 | D126: 92 | E126: W | G126: BARUM | H126: BRAVURIS 2 | J126: 8 | K126: 4 | M126: 6 | N126: 4 | R126: 86.84 | T126: 59.57224 | W126: 135 | Y126: 0 | Z126: 0 | AC126: =(Y126*Z$4-0.65-U126)/U126 ->  | AD126: =Y126*Z$4-0.65-U126 -> -0.65 | AE126: E | AF126: C | AG126: 2 (71 dB)
C127: 1540577 | D127: 92 | E127: Y | G127: BARUM | H127: BRAVURIS 3 HM | R127: 86.84 | T127: 59.57224 | W127: 155 | Y127: 0 | Z127: 0 | AC127: =(Y127*Z$4-0.65-T127)/T127 -> -1.010911122 | AD127: =Y127*Z$4-0.65-T127 -> -60.22224 | AE127: E | AF127: C | AG127: 2 (71 dB)
B128: 205/50R17 | D128: 93 | E128: W | F128: XL | G128: NORDEXX | H128: STRATUS | J128: 20 | T128: 33.27 | W128: 88 | Y128: =X128/1.2 -> 0 | Z128: =X128*Z$6 -> 0 | AC128: =(Y128*Z$6-0.65-T128)/T128 -> -1.019537121 | AD128: =Y128*Z$6-0.65-T128 -> -33.92 | AE128: C | AF128: C | AG128: 3 (73 dB)
D129: 93 | E129: W | F129: XL | G129: NORDEXX | H129: NS9000 | P129: 32 | T129: 29.73 | X129: 85 | Y129: =X129/1.2 -> 70.83333333 | Z129: =X129*Z$6 -> 49.3 | AC129: =(Y129*Z$6-0.75-T129)/T129 -> 0.3566543334 | AD129: =Y129*Z$6-0.75-T129 -> 10.60333333
C130: 1540527 | D130: 89 | E130: V | F130: FR | G130: BARUM | H130: BRAVURIS 3 HM | I130: 4 | J130: 8+87 | K130: 6+64 | M130: 59 | N130: 75 | R130: 74.25 | T130: 50.9355 | U130: 50.94 | W130: 125 | Y130: 0 | Z130: 0 | AC130: =(Y130*Z$4-0.65-T130)/T130 -> -1.012761237 | AD130: =Y130*Z$4-0.65-T130 -> -51.5855 | AE130: E | AF130: C | AG130: 2 (71 dB)
C131: 1540537 | D131: 93 | E131: V | F131: XL, FR | G131: BARUM | H131: BRAVURIS 3 HM | J131: 4+17 | K131: 4+13 | M131: 19 | R131: 83.11 | T131: 57.01346 | W131: 135 | Y131: 0 | Z131: 0 | AC131: =(Y131*Z$4-0.65-T131)/T131 -> -1.011400817 | AD131: =Y131*Z$4-0.65-T131 -> -57.66346 | AE131: E | AF131: C | AG131: 2 (72 dB)
A132: UUS! | B132: 215/50R17 | D132: 95 | E132: W | F132: XL | G132: NORDEXX | H132: NS9000 | P132: 50 | T132: 32.72 | X132: 90 | Y132: =X132/1.2 -> 75 | Z132: =X132*Z$6 -> 52.2 | AC132: =(Y132*Z$6-0.75-T132)/T132 -> 0.3065403423 | AD132: =Y132*Z$6-0.75-T132 -> 10.03
C133: 1540504 | D133: 91 | E133: W | F133: FR | G133: BARUM | H133: BRAVURIS 2 | J133: 16 | K133: 16 | M133: 48 | N133: 75 | T133: 0 | W133: 155 | Y133: 0 | Z133: 0 | AC133: =(Y133*Z$4-0.65-U133)/U133 ->  | AD133: =Y133*Z$4-0.65-U133 -> -0.65 | AE133: E | AF133: C | AG133: 2 (71 dB)
C134: 1540559 | D134: 91 | E134: Y | F134: FR | G134: BARUM | H134: BRAVURIS 3 HM | I134: 6 | J134: 100 | K134: 62 | R134: 90.71 | T134: 62.22706 | U134: 62.23 | W134: 150 | Y134: 0 | Z134: 0 | AC134: =(Y134*Z$4-0.65-T134)/T134 -> -1.010445616 | AD134: =Y134*Z$4-0.65-T134 -> -62.87706 | AE134: E | AF134: C | AG134: 2 (71 dB)
C135: 3410080 | D135: 95 | E135: Y | F135: XL, FR | G135: GISLAVED | H135: ULTRA SPEED | I135: 8 | J135: 17 | K135: 10 | M135: 18 | R135: 89.41 | T135: 61.33526 | U135: 62.68 | W135: 160 | Y135: 0 | Z135: =X135*Z$6 -> 0 | AC135: =(Y135*Z$6-0.65-T135)/T135 -> -1.010597493 | AD135: =Y135*Z$6-0.65-T135 -> -61.98526 | AE135: E | AF135: C | AG135: 2 (71 dB)
A136: UUS! | B136: 225/50R17 | D136: 98 | E136: W | F136: XL | G136: NORDEXX | H136: NS9000 | P136: 75 | T136: 37.49 | X136: 100 | Y136: =X136/1.2 -> 83.33333333 | Z136: =X136*Z$6 -> 58 | AC136: =(Y136*Z$6-0.75-T136)/T136 -> 0.2692273495 | AD136: =Y136*Z$6-0.75-T136 -> 10.09333333
C137: 1552193 | D137: 98 | E137: W | F137: XL, FR | G137: SPORTIVA | H137: SUPER Z | J137: 8 | K137: 8 | M137: 18 | N137: 150 | R137: 94.31 | T137: 64.69666 | W137: 155 | Y137: 0 | Z137: 0 | AC137: =(Y137*Z$4-0.65-U137)/U137 ->  | AD137: =Y137*Z$4-0.65-U137 -> -0.65 | AE137: E | AF137: C | AG137: 2 (71 dB)
C138: 1540583 | D138: 98 | E138: V | F138: XL, FR | G138: BARUM | H138: BRAVURIS 3 HM | I138: 4 | J138: 178 | K138: 128 | M138: 97 | R138: 87.33 | T138: 59.90838 | U138: 59.91 | W138: 150 | Y138: 0 | Z138: 0 | AC138: =(Y138*Z$4-0.65-T138)/T138 -> -1.010849901 | AD138: =Y138*Z$4-0.65-T138 -> -60.55838 | AE138: E | AF138: C | AG138: 2 (72 dB)
C139: 3410790 | D139: 98 | E139: Y | F139: XL, FR | G139: GISLAVED | H139: ULTRA SPEED | J139: 54 | K139: 26 | M139: 40 | R139: 97.72 | T139: =R139*T$4 -> 67.03592 | W139: 160 | Y139: 0 | Z139: =X139*Z$6 -> 0 | AC139: =(Y139*Z$6-0.65-T139)/T139 -> -1.009696294 | AD139: =Y139*Z$6-0.65-T139 -> -67.68592 | AE139: E | AF139: C | AG139: 2 (71 dB)
B140: Profiil 45
B141: 195/45R15 | C141: 1540554 | D141: 78 | E141: V | F141: FR | G141: BARUM | H141: BRAVURIS 3 HM | J141: 4 | N141: 0 | R141: 52.32 | T141: 35.89152 | U141: 35.89 | W141: 95 | Y141: 0 | Z141: =X141*Z$4 -> 0 | AC141: =(Y141*Z$4-0.65-T141)/T141 -> -1.018110127 | AD141: =Y141*Z$4-0.65-T141 -> -36.54152 | AE141: E | AF141: C | AG141: 2 (71 dB)
B142: 195/45R16 | C142: 1540198 | D142: 80 | E142: V | F142: FR | G142: BARUM | H142: BRAVURIS 2 | J142: 4 | K142: 4 | M142: 8 | N142: 8 | T142: 0 | W142: 95 | Y142: 0 | Z142: 0 | AC142: =(Y142*Z$4-0.65-U142)/U142 ->  | AD142: =Y142*Z$4-0.65-U142 -> -0.65 | AE142: F | AF142: C | AG142: 2 (71 dB)
C143: 1540551 | D143: 84 | E143: V | F143: XL, FR | G143: BARUM | H143: BRAVURIS 3 HM | I143: 4 | J143: 10 | K143: 10 | R143: 57.8 | T143: 39.6508 | U143: 39.65 | W143: 100 | Y143: 0 | Z143: 0 | AC143: =(Y143*Z$4-0.65-T143)/T143 -> -1.016393112 | AD143: =Y143*Z$4-0.65-T143 -> -40.3008 | AE143: E | AF143: C | AG143: 2 (72 dB)
A144: UUS! | B144: 205/45R16 | D144: 87 | E144: W | F144: XL | G144: NORDEXX | H144: NS9000 | P144: 20 | T144: 26.89 | X144: 75 | Y144: =X144/1.2 -> 62.5 | Z144: =X144*Z$6 -> 43.5 | AC144: =(Y144*Z$6-0.75-T144)/T144 -> 0.3201933804 | AD144: =Y144*Z$6-0.75-T144 -> 8.61
C145: 1540538 | D145: 83 | E145: V | F145: FR | G145: BARUM | H145: BRAVURIS 3 HM | I145: 6 | J145: 26 | K145: 18 | M145: 22 | N145: 20 | R145: 64.13 | T145: 43.99318 | U145: 43.99 | W145: 105 | Y145: 0 | Z145: 0 | AC145: =(Y145*Z$4-0.65-T145)/T145 -> -1.014775017 | AD145: =Y145*Z$4-0.65-T145 -> -44.64318 | AE145: E | AF145: C | AG145: 2 (71 dB)
B146: 205/45R17 | C146: 1540368 | D146: 88 | E146: W | F146: XL, FR | G146: BARUM | H146: BRAVURIS 2 | I146: 8 | M146: 6 | N146: 8 | T146: 0 | U146: 67.92 | W146: 140 | Y146: 0 | Z146: 0 | AC146: =(Y146*Z$4-0.65-U146)/U146 -> -1.009570082 | AD146: =Y146*Z$4-0.65-U146 -> -68.57 | AE146: F | AF146: C | AG146: 2 (72 dB)
C147: 1540552 | D147: 88 | E147: Y | F147: XL, FR | G147: BARUM | H147: BRAVURIS 3 HM | I147: 4 | J147: 7 | K147: 4 | R147: 89.85 | T147: 61.6371 | U147: 61.63 | W147: 150 | Y147: 0 | Z147: 0 | AC147: =(Y147*Z$4-0.65-T147)/T147 -> -1.010545597 | AD147: =Y147*Z$4-0.65-T147 -> -62.2871 | AE147: E | AF147: C | AG147: 2 (72 dB)
B148: 215/45R17 | C148: 1540505 | D148: 91 | E148: W | F148: XL, FR | G148: BARUM | H148: BRAVURIS 2 | I148: 1 | J148: 21 | K148: 9 | M148: 14 | N148: 20 | R148: 75.67 | T148: =R148*T$4 -> 51.90962 | U148: 59.72 | W148: 125 | Y148: =X148/1.2 -> 0 | Z148: 0 | AC148: =(Y148*Z$4-0.65-U148)/U148 -> -1.010884126 | AD148: =Y148*Z$4-0.65-U148 -> -60.37 | AE148: E | AF148: C | AG148: 2 (72 dB)
C149: 1540592 | D149: 87 | E149: V | F149: FR | G149: BARUM | H149: BRAVURIS 3 HM | I149: 4 | J149: 16 | K149: 8 | R149: 70.46 | T149: 48.33556 | U149: 48.34 | W149: 135 | Y149: 0 | Z149: 0 | AC149: =(Y149*Z$4-0.65-T149)/T149 -> -1.013447656 | AD149: =Y149*Z$4-0.65-T149 -> -48.98556 | AE149: E | AF149: C | AG149: 2 (71 dB)
B150: 225/45R17 | C150: 2255517871 | D150: 94 | E150: W | F150: XL | G150: NORDEXX | H150: STRATUS | J150: 53 | T150: 33.55 | U150: 33.55 | W150: 85 | Y150: 0 | Z150: =X150*Z$6 -> 0 | AC150: =(Y150*Z$6-0.65-T150)/T150 -> -1.019374069 | AD150: =Y150*Z$6-0.65-T150 -> -34.2 | AE150: C | AF150: C | AG150: 3 (73 dB)
D151: 94 | E151: W | F151: XL | G151: NORDEXX | H151: NS9000 | P151: 100 | T151: 31.78 | X151: 90 | Y151: =X151/1.2 -> 75 | Z151: =X151*Z$6 -> 52.2 | AC151: =(Y151*Z$6-0.75-T151)/T151 -> 0.3451856514 | AD151: =Y151*Z$6-0.75-T151 -> 10.97
C152: 1552194 | D152: 94 | E152: Y | F152: XL, FR | G152: SPORTIVA | H152: SUPER Z | I152: 10 | J152: 46 | K152: 38 | M152: 30 | N152: 200 | R152: 68.07 | T152: 46.69602 | U152: 47.24 | W152: 115 | Y152: 0 | Z152: 0 | AC152: =(Y152*Z$4-0.65-T152)/T152 -> -1.013919816 | AD152: =Y152*Z$4-0.65-T152 -> -47.34602 | AE152: F | AF152: C | AG152: 2 (72 dB)
C153: 1540511 | D153: 91 | E153: W | F153: FR | G153: BARUM | H153: BRAVURIS 2 | J153: 6 | K153: 6 | M153: 122 | T153: 0 | W153: 125 | Y153: 0 | Z153: 0 | AC153: =(Y153*Z$4-0.65-U153)/U153 ->  | AD153: =Y153*Z$4-0.65-U153 -> -0.65 | AE153: F | AF153: C | AG153: 2 (71 dB)
C154: 1540536 | D154: 91 | E154: Y | F154: FR | G154: BARUM | H154: BRAVURIS 3 HM | I154: 15 | J154: 78 | K154: 40 | R154: 72.66 | T154: 49.84476 | U154: 49.84 | W154: 120 | Y154: =X154/1.2 -> 0 | Z154: 0 | AC154: =(Y154*Z$4-0.65-T154)/T154 -> -1.013040488 | AD154: =Y154*Z$4-0.65-T154 -> -50.49476 | AE154: E | AF154: C | AG154: 2 (71 dB)
C155: 1540571 | D155: 94 | E155: V | F155: XL, FR | G155: BARUM | H155: BRAVURIS 3 HM | I155: 4 | J155: 1BRV2+146 | K155: 100 | N155: 4 | R155: 71.72 | T155: 49.19992 | U155: 49.28 | W155: 120 | Y155: 0 | Z155: 0 | AC155: =(Y155*Z$4-0.65-T155)/T155 -> -1.013211404 | AD155: =Y155*Z$4-0.65-T155 -> -49.84992 | AE155: E | AF155: C | AG155: 2 (72 dB)
C156: 3410060 | D156: 91 | E156: Y | F156: FR | G156: GISLAVED | H156: ULTRA SPEED | I156: 4 | J156: 64 | K156: 50 | M156: 42 | R156: 66.38 | T156: =R156*T$4 -> 45.53668 | U156: 45.54 | W156: 130 | Y156: =X156/1.2 -> 0 | Z156: =X156*Z$6 -> 0 | AC156: =(Y156*Z$6-0.65-T156)/T156 -> -1.014274207 | AD156: =Y156*Z$6-0.65-T156 -> -46.18668 | AE156: F | AF156: C | AG156: 2 (71 dB)
B157: 235/45R17 | C157: 2355517871 | D157: 97 | E157: W | F157: XL, FR | G157: NORDEXX | H157: STRATUS | I157: 4 | J157: 16 | T157: 34.2 | U157: 34.2 | W157: 88 | X157: 90 | Y157: =X157/1.2 -> 75 | Z157: =X157*Z$6 -> 52.2 | AC157: =(Y157*Z$6-0.65-T157)/T157 -> 0.2529239766 | AD157: =Y157*Z$6-0.65-T157 -> 8.65 | AE157: C | AF157: C | AG157: 3 (73 dB)
D158: 97 | E158: W | F158: XL | G158: NORDEXX | H158: NS9000 | P158: 50 | T158: 34.23 | X158: 95 | Y158: =X158/1.2 -> 79.16666667 | Z158: =X158*Z$6 -> 55.1 | AC158: =(Y158*Z$6-0.75-T158)/T158 -> 0.3195053072 | AD158: =Y158*Z$6-0.75-T158 -> 10.93666667
C159: 1552239 | D159: 94 | E159: W | F159: FR | G159: SPORTIVA | H159: SUPER Z | I159: 3 | J159: 9 | K159: 8 | M159: 24 | N159: 75 | R159: 71.5 | T159: 49.049 | U159: 49.05 | W159: 120 | Y159: 0 | Z159: 0 | AC159: =(Y159*Z$4-0.65-T159)/T159 -> -1.013252054 | AD159: =Y159*Z$4-0.65-T159 -> -49.699 | AE159: F | AF159: C | AG159: 2 (71 dB)
C160: 1540332 | D160: 94 | E160: W | F160: FR | G160: BARUM | H160: BRAVURIS 2 | J160: 8 | K160: 8 | M160: 30 | R160: 80.82 | T160: 55.44252 | W160: 130 | Y160: 0 | Z160: 0 | AC160: =(Y160*Z$4-0.65-U160)/U160 ->  | AD160: =Y160*Z$4-0.65-U160 -> -0.65 | AE160: E | AF160: C | AG160: 2 (71 dB)
C161: 1540534 | D161: 94 | E161: Y | F161: FR | G161: BARUM | H161: BRAVURIS 3 HM | I161: 2 | J161: 59 | K161: 27 | R161: 80.82 | T161: 55.44252 | U161: 55.45 | W161: 135 | Y161: 0 | Z161: 0 | AC161: =(Y161*Z$4-0.65-T161)/T161 -> -1.011723854 | AD161: =Y161*Z$4-0.65-T161 -> -56.09252 | AE161: E | AF161: C | AG161: 2 (71 dB)
C162: 3410880 | D162: 97 | E162: Y | F162: XL, FR | G162: GISLAVED | H162: ULTRA SPEED | J162: 20 | K162: 16 | M162: 18 | R162: 76.73 | T162: 52.63678 | W162: 145 | Y162: 0 | Z162: =X162*Z$6 -> 0 | AC162: =(Y162*Z$6-0.65-T162)/T162 -> -1.01234878 | AD162: =Y162*Z$6-0.65-T162 -> -53.28678 | AE162: F | AF162: C | AG162: 2 (71 dB)
C163: 1540560 | D163: 97 | E163: Y | F163: XL, FR | G163: BARUM | H163: BRAVURIS 3 HM | I163: 2 | J163: 16 | K163: 10 | N163: 4 | R163: 83.83 | T163: 57.50738 | U163: 57.51 | W163: 145 | Y163: 0 | Z163: 0 | AC163: =(Y163*Z$4-0.65-T163)/T163 -> -1.011302897 | AD163: =Y163*Z$4-0.65-T163 -> -58.15738 | AE163: E | AF163: C | AG163: 2 (72 dB)
A164: UUS! | B164: 245/45R17 | D164: 99 | E164: W | F164: XL | G164: NORDEXX | H164: NS9000 | P164: 32 | T164: 38.73 | X164: 105 | Y164: =X164/1.2 -> 87.5 | Z164: =X164*Z$6 -> 60.9 | AC164: =(Y164*Z$6-0.75-T164)/T164 -> 0.2909888975 | AD164: =Y164*Z$6-0.75-T164 -> 11.27
C165: 1552241 | D165: 95 | E165: W | F165: FR | G165: SPORTIVA | H165: SUPER Z | I165: 8 | J165: 4 | N165: 32 | R165: 87.09 | T165: 59.74374 | U165: 59.74 | W165: 140 | Y165: 0 | Z165: 0 | AC165: =(Y165*Z$4-0.65-T165)/T165 -> -1.010879801 | AD165: =Y165*Z$4-0.65-T165 -> -60.39374 | AE165: F | AF165: C | AG165: 2 (71 dB)
C166: 1540372 | D166: 95 | E166: W | F166: FR | G166: BARUM | H166: BRAVURIS 2 | J166: 6 | K166: 6 | M166: 24 | T166: 0 | W166: 165 | Y166: 0 | Z166: 0 | AC166: =(Y166*Z$4-0.65-U166)/U166 ->  | AD166: =Y166*Z$4-0.65-U166 -> -0.65 | AE166: F | AF166: C | AG166: 2 (71 dB)
C167: 1540557 | D167: 99 | E167: Y | F167: XL, FR | G167: BARUM | H167: BRAVURIS 3 HM | I167: 4 | J167: 39 | K167: 22 | R167: 104.04 | T167: 71.37144 | U167: 71.37 | W167: 170 | Y167: 0 | Z167: 0 | AC167: =(Y167*Z$4-0.65-T167)/T167 -> -1.009107284 | AD167: =Y167*Z$4-0.65-T167 -> -72.02144 | AE167: E | AF167: C | AG167: 2 (72 dB)
A168: UUS! | B168: 225/45R18 | D168: 95 | E168: W | F168: XL | G168: NORDEXX | H168: NS9000 | P168: 32 | T168: 34.16 | X168: 95 | Y168: =X168/1.2 -> 79.16666667 | Z168: =X168*Z$6 -> 55.1 | AC168: =(Y168*Z$6-0.75-T168)/T168 -> 0.3222092116 | AD168: =Y168*Z$6-0.75-T168 -> 11.00666667
C169: 1552243 | D169: 95 | E169: Y | F169: XL, FR | G169: SPORTIVA | H169: SUPER Z | I169: 5 | J169: 7 | K169: 6 | N169: 32 | R169: 102.3 | T169: 70.1778 | U169: 70.18 | W169: 165 | Y169: 0 | Z169: 0 | AC169: =(Y169*Z$4-0.65-T169)/T169 -> -1.009262188 | AD169: =Y169*Z$4-0.65-T169 -> -70.8278 | AE169: E | AF169: C | AG169: 2 (72 dB)
C170: 1540564 | D170: 95 | E170: Y | F170: XL, FR | G170: BARUM | H170: BRAVURIS 3 HM | I170: 4 | J170: 2+32 | K170: 2+12 | M170: 26 | R170: 115.65 | T170: 79.3359 | U170: 79.34 | W170: 190 | Y170: 0 | Z170: 0 | AC170: =(Y170*Z$4-0.65-T170)/T170 -> -1.008193012 | AD170: =Y170*Z$4-0.65-T170 -> -79.9859 | AE170: E | AF170: C | AG170: 2 (72 dB)
B171: 235/45R18 | C171: 1540572 | D171: 98 | E171: Y | F171: XL, FR | G171: BARUM | H171: BRAVURIS 3 HM | I171: 8 | J171: 26 | K171: 16 | N171: 12 | R171: 125.54 | T171: 86.12044 | U171: 86.12 | W171: 205 | Y171: 0 | Z171: 0 | AC171: =(Y171*Z$4-0.65-T171)/T171 -> -1.007547569 | AD171: =Y171*Z$4-0.65-T171 -> -86.77044 | AE171: E | AF171: C | AG171: 2 (72 dB)
A172: UUS! | B172: 245/45R18 | D172: 100 | E172: W | F172: XL | G172: NORDEXX | H172: NS9000 | P172: 32 | T172: 38.47 | X172: 105 | Y172: =X172/1.2 -> 87.5 | Z172: =X172*Z$6 -> 60.9 | AC172: =(Y172*Z$6-0.75-T172)/T172 -> 0.2997140629 | AD172: =Y172*Z$6-0.75-T172 -> 11.53
C173: 1540364 | D173: 96 | E173: W | F173: FR | G173: BARUM | H173: BRAVURIS 2 | J173: 8 | K173: 8 | M173: 14 | N173: 20 | T173: 0 | W173: 200 | Y173: 0 | Z173: 0 | AC173: =(Y173*Z$4-0.65-U173)/U173 ->  | AD173: =Y173*Z$4-0.65-U173 -> -0.65 | AE173: F | AF173: C | AG173: 2 (71 dB)
C174: 1540547 | D174: 96 | E174: Y | F174: FR | G174: BARUM | H174: BRAVURIS 3 HM | I174: 6 | J174: 34 | K174: 22 | R174: 118.23 | T174: 81.10578 | U174: 81.11 | W174: 200 | Y174: 0 | Z174: 0 | AC174: =(Y174*Z$4-0.65-T174)/T174 -> -1.008014225 | AD174: =Y174*Z$4-0.65-T174 -> -81.75578 | AE174: E | AF174: C | AG174: 2 (71 dB)
C175: 1540558 | D175: 100 | E175: Y | F175: XL, FR | G175: BARUM | H175: BRAVURIS 3 HM | I175: 2 | J175: 2+38 | K175: 2+26 | M175: 10 | R175: 122.53 | T175: 84.05558 | U175: 84.06 | W175: 205 | Y175: 0 | Z175: 0 | AC175: =(Y175*Z$4-0.65-T175)/T175 -> -1.007732979 | AD175: =Y175*Z$4-0.65-T175 -> -84.70558 | AE175: E | AF175: C | AG175: 2 (72 dB)
B176: 255/45R18 | C176: 1540100 | D176: 103 | E176: Y | F176: XL, FR | G176: BARUM | H176: BRAVURIS 2 | J176: 4 | M176: 4 | N176: 4 | R176: 131.98 | T176: 90.53828 | W176: 220 | Y176: 0 | Z176: 0 | AC176: =(Y176*Z$4-0.65-U176)/U176 ->  | AD176: =Y176*Z$4-0.65-U176 -> -0.65 | AE176: E | AF176: C | AG176: 2 (73 dB)
C177: 1540575 | D177: 103 | E177: Y | F177: XL, FR | G177: BARUM | H177: BRAVURIS 3 HM | I177: 4 | J177: 4 | K177: 4 | R177: 131.98 | T177: 90.53828 | U177: 90.54 | W177: 230 | Y177: 0 | Z177: 0 | AC177: =(Y177*Z$4-0.65-T177)/T177 -> -1.007179284 | AD177: =Y177*Z$4-0.65-T177 -> -91.18828 | AE177: E | AF177: C | AG177: 2 (73 dB)
B178: Profiil 40
B179: 215/40R16 | C179: 1540371 | D179: 86 | E179: W | F179: XL, FR | G179: BARUM | H179: BRAVURIS 2 | N179: 0 | R179: 71.37 | T179: 48.95982 | W179: 130 | Y179: =X179/1.2 -> 0 | Z179: =X179*Z$4 -> 0 | AC179: =(Y179*Z$4-0.65-T179)/T179 -> -1.013276193 | AD179: =Y179*Z$4-0.65-T179 -> -49.60982 | AE179: F | AF179: C | AG179: 2 (72 dB)
B180: 205/40R17 | C180: 1540502 | D180: 84 | E180: W | F180: XL, FR | G180: BARUM | H180: BRAVURIS 2 | J180: 4 | M180: 2+2 | N180: 4 | T180: 0 | W180: 125 | Y180: =X180/1.2 -> 0 | Z180: 0 | AC180: =(Y180*Z$4-0.65-U180)/U180 ->  | AD180: =Y180*Z$4-0.65-U180 -> -0.65 | AE180: F | AF180: C | AG180: 2 (72 dB)
C181: 1540558 | D181: 84 | E181: Y | F181: XL, FR | G181: BARUM | H181: BRAVURIS 3 HM | R181: 75.24 | T181: 51.61464 | W181: 140 | Y181: 0 | Z181: 0 | AC181: =(Y181*Z$4-0.65-T181)/T181 -> -1.012593326 | AD181: =Y181*Z$4-0.65-T181 -> -52.26464 | AE181: E | AF181: C | AG181: 2 (72 dB)
B182: 215/40R17 | C182: 1540563 | D182: 87 | E182: Y | F182: XL, FR | G182: BARUM | H182: BRAVURIS 3 HM | I182: 4 | J182: 4 | K182: 4 | M182: 4 | N182: 4 | R182: 85.98 | T182: =R182*T$4 -> 58.98228 | U182: 58.98 | W182: 155 | Y182: 0 | Z182: 0 | AC182: =(Y182*Z$4-0.65-T182)/T182 -> -1.011020259 | AD182: =Y182*Z$4-0.65-T182 -> -59.63228 | AE182: E | AF182: C | AG182: 2 (72 dB)
B183: 235/40R17 | C183: 1540363 | D183: 90 | E183: W | F183: FR | G183: BARUM | H183: BRAVURIS 2 | N183: 0 | R183: 92.86 | T183: 63.70196 | W183: 155 | Y183: 0 | Z183: 0 | AC183: =(Y183*Z$4-0.65-T183)/T183 -> -1.010203768 | AD183: =Y183*Z$4-0.65-T183 -> -64.35196 | AE183: E | AF183: C | AG183: 2 (71 dB)
B184: 245/40R17 | C184: 1540333 | D184: 91 | E184: W | F184: FR | G184: BARUM | H184: BRAVURIS 2 | I184: 8+1RSP1 | N184: 4 | R184: 92.86 | T184: 63.70196 | U184: 71.48 | W184: 150 | Y184: 0 | Z184: 0 | AC184: =(Y184*Z$4-0.65-U184)/U184 -> -1.009093453 | AD184: =Y184*Z$4-0.65-U184 -> -72.13 | AE184: E | AF184: C | AG184: 2 (71 dB)
C185: 1540561 | D185: 91 | E185: Y | F185: FR | G185: BARUM | H185: BRAVURIS 3 HM | I185: 4 | J185: 6 | K185: 4 | R185: 92.86 | T185: 63.70196 | U185: 63.7 | W185: 160 | Y185: 0 | Z185: 0 | AC185: =(Y185*Z$4-0.65-T185)/T185 -> -1.010203768 | AD185: =Y185*Z$4-0.65-T185 -> -64.35196 | AE185: E | AF185: C | AG185: 2 (71 dB)
B186: 255/40R17 | C186: 1540373 | D186: 94 | E186: W | F186: FR | G186: BARUM | H186: BRAVURIS 2 | I186: 2+1RSP1 | J186: 4 | K186: 4 | M186: 8 | N186: 8 | R186: 105.76 | T186: 72.55136 | U186: 72.55 | W186: 178 | Y186: 0 | Z186: 0 | AC186: =(Y186*Z$4-0.65-T186)/T186 -> -1.00895917 | AD186: =Y186*Z$4-0.65-T186 -> -73.20136 | AE186: E | AF186: C | AG186: 2 (72 dB)
A187: UUS! | B187: 225/40R18 | D187: 92 | E187: W | F187: XL | G187: NORDEXX | H187: NS9000 | P187: 20 | T187: 32.69 | X187: 90 | Y187: =X187/1.2 -> 75 | Z187: =X187*Z$6 -> 52.2 | AC187: =(Y187*Z$6-0.75-T187)/T187 -> 0.3077393698 | AD187: =Y187*Z$6-0.75-T187 -> 10.06
C188: 1540512 | D188: 92 | E188: W | F188: XL, FR | G188: BARUM | H188: BRAVURIS 2 | I188: 4RSP2 | J188: 12 | K188: 12 | M188: 14 | N188: 20 | R188: 88.99 | T188: 61.04714 | U188: 85 | W188: 155 | Y188: 0 | Z188: 0 | AC188: =(Y188*Z$4-0.65-U188)/U188 -> -1.007647059 | AD188: =Y188*Z$4-0.65-U188 -> -85.65 | AE188: E | AF188: C | AG188: 2 (72 dB)
C189: 1540570 | D189: 92 | E189: Y | F189: XL, FR | G189: BARUM | H189: BRAVURIS 3 HM | I189: 4 | J189: 39 | K189: 8 | R189: 88.99 | T189: 61.04714 | U189: 61.05 | W189: 150 | Y189: 0 | Z189: 0 | AC189: =(Y189*Z$4-0.65-T189)/T189 -> -1.010647509 | AD189: =Y189*Z$4-0.65-T189 -> -61.69714 | AE189: E | AF189: C | AG189: 2 (72 dB)
B190: 235/40R18 | C190: 1540553 | D190: 95 | E190: Y | F190: XL, FR | G190: BARUM | H190: BRAVURIS 3 HM | I190: 8+2 | J190: 2+16 | K190: 2+4 | M190: 13+4SPRZ | N190: 12 | R190: 109.63 | T190: 75.20618 | U190: 75,21+87 | W190: 190 | Y190: 0 | Z190: 0 | AC190: =(Y190*Z$4-0.65-T190)/T190 -> -1.008642907 | AD190: =Y190*Z$4-0.65-T190 -> -75.85618 | AE190: E | AF190: C | AG190: 2 (72 dB)
A191: UUS! | B191: 245/40R18 | D191: 97 | E191: W | F191: XL | G191: NORDEXX | H191: NS9000 | P191: 50 | T191: 36.18 | X191: 100 | Y191: =X191/1.2 -> 83.33333333 | Z191: =X191*Z$6 -> 58 | AC191: =(Y191*Z$6-0.75-T191)/T191 -> 0.3151833425 | AD191: =Y191*Z$6-0.75-T191 -> 11.40333333
C192: 1552246 | D192: 97 | E192: Y | F192: XL, FR | G192: SPORTIVA | H192: SUPER Z | I192: 1 | J192: 20 | K192: 18 | M192: 14 | N192: 50 | R192: 104.58 | T192: 71.74188 | U192: 71.75 | W192: 170 | Y192: 0 | Z192: 0 | AC192: =(Y192*Z$4-0.65-T192)/T192 -> -1.009060259 | AD192: =Y192*Z$4-0.65-T192 -> -72.39188 | AE192: E | AF192: C | AG192: 2 (72 dB)
C193: 1540589 | D193: 93 | E193: Y | F193: FR | G193: BARUM | H193: BRAVURIS 3 HM | I193: 4 | J193: 74 | K193: 40 | R193: 111.78 | T193: 76.68108 | U193: 83.34 | W193: 185 | Y193: 0 | Z193: 0 | AC193: =(Y193*Z$4-0.65-T193)/T193 -> -1.008476667 | AD193: =Y193*Z$4-0.65-T193 -> -77.33108 | AE193: E | AF193: C | AG193: 2 (71 dB)
C194: 1540541 | D194: 97 | E194: Y | F194: XL, FR | G194: BARUM | H194: BRAVURIS 3 HM | J194: 8+ | K194: 8+ | M194: 27 | R194: 118.23 | T194: 81.10578 | W194: 200 | Y194: 0 | Z194: 0 | AC194: =(Y194*Z$4-0.65-T194)/T194 -> -1.008014225 | AD194: =Y194*Z$4-0.65-T194 -> -81.75578 | AE194: E | AF194: C | AG194: 2 (72 dB)
C195: 3410980 | D195: 97 | E195: Y | F195: XL, FR | G195: GISLAVED | H195: ULTRA SPEED | I195: 4 | J195: 13 | K195: 5 | M195: 17 | R195: 108.16 | T195: 74.19776 | U195: 74.2 | W195: 200 | Y195: 0 | Z195: =X195*Z$6 -> 0 | AC195: =(Y195*Z$6-0.65-T195)/T195 -> -1.008760372 | AD195: =Y195*Z$6-0.65-T195 -> -74.84776 | AE195: E | AF195: C | AG195: 2 (71 dB)
B196: 245/40R19 | C196: 1540593 | D196: 98 | E196: Y | F196: XL, FR | G196: BARUM | H196: BRAVURIS 3 HM | I196: 6 | J196: 10 | K196: 10 | N196: 12 | R196: 144.02 | T196: 98.79772 | U196: 98.8 | W196: 240 | Y196: 0 | Z196: 0 | AC196: =(Y196*Z$4-0.65-T196)/T196 -> -1.006579099 | AD196: =Y196*Z$4-0.65-T196 -> -99.44772 | AE196: E | AF196: C | AG196: 2 (71 dB)
B197: 255/40R19 | C197: 1540580 | D197: 100 | E197: Y | F197: XL, FR | G197: BARUM | H197: BRAVURIS 3 HM | I197: 5 | J197: 15 | K197: 11 | M197: 20 | N197: 12 | R197: 154.34 | T197: 105.87724 | U197: 105.88 | W197: 255 | Y197: 0 | Z197: 0 | AC197: =(Y197*Z$4-0.65-T197)/T197 -> -1.006139185 | AD197: =Y197*Z$4-0.65-T197 -> -106.52724 | AE197: E | AF197: C | AG197: 2 (73 dB)
B198: Profiil 35
B199: 255/35R18 | C199: 1540335 | D199: 94 | E199: W | F199: XL, FR | G199: BARUM | H199: BRAVURIS 2 | J199: 4 | K199: 4 | M199: 4 | N199: 4 | R199: 124.25 | T199: 85.2355 | W199: 210 | Y199: =X199/1.2 -> 0 | Z199: =X199*Z$4 -> 0 | AC199: =(Y199*Z$4-0.65-U199)/U199 ->  | AD199: =Y199*Z$4-0.65-U199 -> -0.65 | AE199: E | AF199: C | AG199: 2 (73 dB)
C200: 1540581 | D200: 94 | E200: Y | F200: XL, FR | G200: BARUM | H200: BRAVURIS 3 HM | J200: 4 | K200: 2 | R200: 124.25 | T200: 85.2355 | U200: 85.24 | W200: 210 | Y200: =X200/1.2 -> 0 | Z200: 0 | AC200: =(Y200*Z$4-0.65-T200)/T200 -> -1.007625931 | AD200: =Y200*Z$4-0.65-T200 -> -85.8855 | AE200: E | AF200: C | AG200: 2 (73 dB)
B201: 265/35R18 | C201: 1540376 | D201: 93 | E201: W | F201: FR | G201: BARUM | H201: BRAVURIS 2 | I201: 4 | M201: 6 | N201: 4 | R201: 126.83 | T201: 87.00538 | U201: 95.82 | W201: 210 | Y201: 0 | Z201: 0 | AC201: =(Y201*Z$4-0.65-U201)/U201 -> -1.006783552 | AD201: =Y201*Z$4-0.65-U201 -> -96.47 | AE201: E | AF201: C | AG201: 2 (72 dB)
... 158 more rows

Sheet ÄRI
B1: HINNAKIRI SUVI 2014
B3: Mõõt | C3: Artikkel | D3: Koormus-indeks | E3: Kiirus-indeks | F3: Märkus | G3: Tootja | H3: Mudel | I3: Laoseis | J3: Müük | K3: Kuni 31/5 | L3: Prognoos | N3: Tellida | O3: Extra | P3: Järel | Q3: Ost PL 2014 | R3: Ost PL | S3: Ost | T3: Laohind | U3: Jaehind SR | V3: Jaehind 2014 | W3: Jaehind | X3: Jaehind km-ta | Y3: Müügi-hind | Z3: R24 hulgi | AA3: R24 jae | AB3: Müügikate, % | AC3: Müügikate, € | AD3: Rehvimärgis
B4: SÕIDUAUTO REHVID | S4: 0.686 | AB4: 0.58
B5: Profiil 80
B6: 125/80R13 | C6: 3561150 | D6: 65 | E6: M | G6: CONTINENTAL | H6: CONTI.eCONTACT | L6: 0 | N6: 0 | Q6: 48.42 | R6: 41.72 | S6: =R6*S$4 -> 28.61992 | V6: 85 | W6: 75 | X6: =W6/1.2 -> 62.5 | Y6: =W6*AB$4 -> 43.5 | AB6: =(X6*AB$4-0.75-S6)/S6 -> 0.2403948019 | AC6: =X6*AB$4-0.75-S6 -> 6.88008
B7: 145/80R13 | C7: 3520040 | D7: 75 | E7: T | G7: CONTINENTAL | H7: ECOCONTACT 3 | L7: 0 | N7: 0 | Q7: 43.58 | R7: 43.98 | S7: =R7*S$4 -> 30.17028 | V7: 75 | W7: 75 | X7: 62.5 | Y7: 43.5 | AB7: =(X7*AB$4-0.75-S7)/S7 -> 0.1766546416 | AC7: =X7*AB$4-0.75-S7 -> 5.32972 | AD7: F | AE7: B | AF7: 2 (70 dB)
B8: 155/80R13 | C8: 3505820 | D8: 79 | E8: T | G8: CONTINENTAL | H8: ECOCONTACT 3 | L8: 0 | N8: 0 | Q8: 43.58 | R8: 44.3 | S8: 30.3898 | V8: 75 | W8: 75 | X8: 62.5 | Y8: 43.5 | AB8: =(X8*AB$4-0.75-S8)/S8 -> 0.1681551047 | AC8: 5.1102 | AD8: F | AE8: C | AF8: 2 (70 dB)
B9: 165/80R13 | C9: 3520060 | D9: 83 | E9: T | G9: CONTINENTAL | H9: ECOCONTACT 3 | Q9: 53.26 | S9: 0 | V9: 90 | X9: 0 | Y9: 0 | AC9: -0.75 | AD9: C | AE9: B | AF9: 2 (70 dB)
B10: 175/80R14 | C10: 3522870 | D10: 88 | E10: T | G10: CONTINENTAL | H10: ECOCONTACT 3 | I10: 4 | L10: 4 | N10: 0 | Q10: 58.85 | R10: 59.98 | S10: 41.14628 | T10: 40.66 | V10: 98 | W10: 100 | X10: 83.33333333 | Y10: 58 | AB10: 0.1564431422 | AC10: 6.437053333 | AD10: C | AE10: B | AF10: 2 (70 dB)
B11: 165/80R15 | C11: 3526210 | D11: 87 | E11: T | G11: CONTINENTAL | H11: CONTACT CT 22 | I11: 4 | L11: 4 | N11: 0 | Q11: 58.85 | R11: 57.96 | S11: 39.76056 | T11: 40.37 | V11: 98 | W11: 100 | X11: 83.33333333 | Y11: 58 | AB11: 0.1967470612 | AC11: 7.822773333 | AD11: F | AE11: E | AF11: 2 (70 dB)
B12: Profiil 70
B13: 145/70R13 | C13: 3520070 | D13: 71 | E13: T | G13: CONTINENTAL | H13: ECOCONTACT 3 | L13: 0 | N13: 0 | Q13: 45.44 | R13: 46.05 | S13: 31.5903 | V13: 75 | W13: 80 | X13: =W13/1.2 -> 66.66666667 | Y13: =W13*AB$4 -> 46.4 | AB13: 0.2002629499 | AC13: 6.326366667 | AD13: E | AE13: B | AF13: 2 (70 dB)
B14: 155/70R13 | C14: 3520080 | D14: 75 | E14: T | G14: CONTINENTAL | H14: ECOCONTACT 3 | L14: 0 | N14: 0 | Q14: 42.83 | R14: 43.84 | S14: 30.07424 | V14: 75 | W14: 80 | X14: =W14/1.2 -> 66.66666667 | Y14: =W14*AB$4 -> 46.4 | AB14: 0.2607689061 | AC14: 7.842426667 | AD14: F | AE14: B | AF14: 2 (70 dB)
B15: 165/70R13 | C15: 3520090 | D15: 79 | E15: T | G15: CONTINENTAL | H15: ECOCONTACT 3 | L15: 0 | N15: 0 | Q15: 47.68 | R15: 48.6 | S15: 33.3396 | V15: 80 | W15: 80 | X15: 66.66666667 | Y15: 46.4 | AB15: 0.1372861902 | AC15: 4.577066667 | AD15: E | AE15: B | AF15: 2 (70 dB)
C16: 3526100 | D16: 83 | E16: T | F16: XL | G16: CONTINENTAL | H16: ECOCONTACT 3 | L16: 0 | N16: 0 | Q16: 55.13 | R16: 56.24 | S16: 38.58064 | V16: 95 | W16: 95 | X16: 79.16666667 | Y16: 55.1 | AB16: 0.1707080719 | AC16: 6.586026667 | AD16: C | AE16: B | AF16: 2 (71 dB)
B17: 175/70R13 | C17: 3520100 | D17: 82 | E17: T | G17: CONTINENTAL | H17: ECOCONTACT 3 | J17: 8 | K17: 8 | L17: 4 | N17: 4 | Q17: 50.66 | R17: 49.99 | S17: 34.29314 | V17: 85 | W17: 85 | X17: 70.83333333 | Y17: 49.3 | AB17: 0.1761341578 | AC17: 6.040193333 | AD17: E | AE17: B | AF17: 2 (70 dB)
B18: 185/70R13 | C18: 3522880 | D18: 86 | E18: T | G18: CONTINENTAL | H18: ECOCONTACT 3 | Q18: 65.93 | S18: 0 | V18: 110 | X18: 0 | Y18: 0 | AC18: -0.75 | AD18: E | AE18: B | AF18: 2 (70 dB)
B19: 155/70R14 | C19: 3504580 | D19: 77 | E19: T | G19: CONTINENTAL | H19: PREMIUMCONTACT 2 | I19: 4 | L19: 4 | N19: 0 | Q19: 50.66 | R19: 51.53 | S19: 35.34958 | T19: 34.75 | V19: 85 | W19: 85 | X19: 70.83333333 | Y19: 49.3 | AB19: 0.1409847962 | AC19: 4.983753333 | AD19: F | AE19: C | AF19: 2 (70 dB)
B20: 165/70R14 | C20: 3569020 | D20: 81 | E20: T | G20: CONTINENTAL | H20: PREMIUMCONTACT 5 | J20: 4 | K20: 4 | L20: 0 | N20: 0 | Q20: 50.28 | R20: 51.04 | S20: 35.01344 | V20: 85 | W20: 85 | X20: 70.83333333 | Y20: 49.3 | AB20: 0.151938608 | AC20: 5.319893333 | AD20: E | AE20: A | AF20: 2 (70 dB)
C21: 3560420 | D21: 85 | E21: T | F21: XL | G21: CONTINENTAL | H21: ECOCONTACT 5 | L21: 0 | N21: 0 | Q21: 56.24 | R21: 57.1 | S21: 39.1706 | V21: 95 | W21: 95 | X21: 79.16666667 | Y21: 55.1 | AB21: 0.1530756911 | AC21: 5.996066667 | AD21: B | AE21: B | AF21: 1 (68 dB)
B22: 175/70R14 | C22: 3560440 | D22: 84 | E22: T | G22: CONTINENTAL | H22: ECOCONTACT 5 | I22: 4 | J22: 13 | K22: 13 | L22: 8 | N22: 4 | Q22: 63.96 | R22: 64.71 | S22: 44.39106 | T22: 43.69 | V22: 100 | W22: 105 | X22: 87.5 | Y22: 60.9 | AB22: 0.1263529188 | AC22: 5.60894 | AD22: B | AE22: B | AF22: 2 (70 dB)
C23: 3562840 | D23: 88 | E23: T | F23: XL | G23: CONTINENTAL | H23: ECOCONTACT 5 | L23: 0 | N23: 0 | Q23: 68.91 | R23: 70.18 | S23: 48.14348 | V23: 115 | W23: 120 | X23: 100 | Y23: 69.6 | AB23: 0.1891537546 | AC23: 9.10652 | AD23: B | AE23: B | AF23: 2 (71 dB)
B24: 185/70R14 | C24: 3518990 | D24: 88 | E24: T | G24: CONTINENTAL | H24: ECOCONTACT 5 | J24: 10 | K24: 10 | L24: 4 | N24: 4 | Q24: 67.79 | R24: 68.14 | S24: 46.74404 | V24: 110 | W24: 110 | X24: 91.66666667 | Y24: 63.8 | AB24: 0.121355079 | AC24: 5.672626667 | AD24: C | AE24: B | AF24: 2 (70 dB)
B25: 135/70R15 | C25: 3510410 | D25: 70 | E25: T | F25: FR | G25: CONTINENTAL | H25: ECOCONTACT EP | L25: 0 | N25: 0 | Q25: 80.45 | R25: 79.4 | S25: 54.4684 | V25: 135 | W25: 135 | X25: 112.5 | Y25: 78.3 | AB25: 0.1841728415 | AC25: 10.0316 | AD25: F | AE25: E | AF25: 2 (70 dB)
B26: 205/70R16 | C26: 3506970 | D26: 97 | E26: H | G26: CONTINENTAL | H26: PREMIUMCONTACT 2 | I26: 3 | J26: 3 | K26: 4 | L26: 4 | N26: 1 | Q26: 104.66 | R26: 103.31 | S26: 70.87066 | T26: 71.8 | V26: 170 | W26: 170 | X26: 141.6666667 | Y26: 98.6 | AB26: 0.1488063843 | AC26: 10.54600667 | AD26: C | AE26: B | AF26: 2 (71 dB)
B27: Profiil 65
B28: 155/65R13 | C28: 3567270 | D28: 73 | E28: T | G28: CONTINENTAL | H28: ECOCONTACT EP | L28: 0 | N28: 0 | Q28: 46.56 | R28: 47.52 | S28: 32.59872 | V28: 80 | W28: 80 | X28: =W28/1.2 -> 66.66666667 | Y28: =W28*AB$4 -> 46.4 | AB28: 0.1631336036 | AC28: 5.317946667 | AD28: F | AE28: E | AF28: 2 (70 dB)
B29: 165/65R13 | C29: 3520200 | D29: 77 | E29: T | G29: CONTINENTAL | H29: ECOCONTACT 3 | Q29: 53.26 | S29: 0 | V29: 90 | X29: =W29/1.2 -> 0 | Y29: =W29*AB$4 -> 0 | AC29: -0.75 | AD29: F | AE29: B | AF29: 2 (70 dB)
B30: 175/65R13 | C30: 3520130 | D30: 80 | E30: T | G30: CONTINENTAL | H30: ECOCONTACT 3 | L30: 0 | N30: 0 | Q30: 63.32 | R30: 64.38 | S30: 44.16468 | V30: 105 | W30: 110 | X30: 91.66666667 | Y30: 63.8 | AB30: 0.1868458385 | AC30: 8.251986667 | AD30: E | AE30: B | AF30: 2 (70 dB)
B31: 155/65R14 | C31: 3506690 | D31: 75 | E31: T | G31: CONTINENTAL | H31: PREMIUMCONTACT 2 | I31: 4 | J31: 4 | L31: 4 | N31: 0 | Q31: 49.91 | R31: 50.82 | S31: 34.86252 | T31: 34.24 | V31: 85 | W31: 85 | X31: 70.83333333 | Y31: 49.3 | AB31: 0.1569253552 | AC31: 5.470813333 | AD31: C | AE31: C | AF31: 2 (70 dB)
B32: 165/65R14 | C32: 3562170 | D32: 79 | E32: T | G32: CONTINENTAL | H32: ECOCONTACT 5 | L32: 0 | N32: 0 | Q32: 48.79 | R32: 49.53 | S32: 33.97758 | V32: 85 | W32: 85 | X32: 70.83333333 | Y32: 49.3 | AB32: 0.1870572693 | AC32: 6.355753333 | AD32: C | AE32: B | AF32: 2 (70 dB)
B33: 175/65R14 | C33: 3562400 | D33: 82 | E33: T | G33: CONTINENTAL | H33: PREMIUMCONTACT 5 | I33: 6 | J33: 62+4 | K33: 42+4 | L33: 40 | N33: 20 | Q33: 48.79 | R33: 48.06 | S33: 32.96916 | T33: 33.47 | V33: 78 | W33: 80 | X33: 66.66666667 | Y33: 46.4 | AB33: 0.1500646867 | AC33: 4.947506667 | AD33: C | AE33: A | AF33: 2 (70 dB)
C34: 3509990 | D34: 86 | E34: T | F34: XL | G34: CONTINENTAL | H34: ECOCONTACT 5 | L34: 0 | N34: 0 | Q34: 59.97 | R34: 60.48 | S34: 41.48928 | V34: 100 | W34: 100 | X34: 83.33333333 | Y34: 58 | AB34: 0.1468826004 | AC34: 6.094053333 | AD34: B | AE34: B | AF34: 2 (71 dB)
B35: 185/65R14 | C35: 3520220 | D35: 86 | E35: T | G35: CONTINENTAL | H35: ECOCONTACT 3 | I35: 8 | J35: 8 | K35: 8 | L35: 8 | N35: 0 | Q35: 57.36 | R35: 58.46 | S35: 40.10356 | T35: 39.34 | V35: 95 | W35: 95 | X35: 79.16666667 | Y35: 55.1 | AB35: 0.1262508033 | AC35: 5.063106667 | AD35: E | AE35: B | AF35: 2 (70 dB)
B36: 195/65R14 | C36: 3504000 | D36: 89 | E36: H | G36: CONTINENTAL | H36: PREMIUMCONTACT 2 | L36: 0 | N36: 0 | Q36: 84.55 | R36: 83.63 | S36: 57.37018 | V36: 145 | W36: 140 | X36: 116.6666667 | Y36: 81.2 | AB36: 0.1664015464 | AC36: 9.546486667 | AD36: E | AE36: B | AF36: 2 (71 dB)
B37: 145/65R15 | C37: 3512350 | D37: 72 | E37: T | F37: FR | G37: CONTINENTAL | H37: ECOCONTACT EP | J37: 2 | K37: 2 | L37: 0 | N37: 0 | Q37: 61.83 | R37: 61.22 | S37: 41.99692 | V37: 105 | W37: 105 | X37: 87.5 | Y37: 60.9 | AB37: 0.1905634985 | AC37: 8.00308 | AD37: F | AE37: B | AF37: 2 (70 dB)
B38: 165/65R15 | C38: 3520870 | D38: 81 | E38: T | G38: CONTINENTAL | H38: ECOCONTACT 3 | L38: 0 | N38: 0 | Q38: 63.69 | R38: 65.22 | S38: 44.74092 | V38: 105 | W38: 110 | X38: 91.66666667 | Y38: 63.8 | AB38: 0.1715598755 | AC38: 7.675746667 | AD38: E | AE38: B | AF38: 2 (70 dB)
B39: 175/65R15 | C39: 3509980 | D39: 84 | E39: T | G39: CONTINENTAL | H39: ECOCONTACT 5 | L39: 0 | N39: 0 | Q39: 58.48 | R39: 58.88 | S39: 40.39168 | V39: 105 | W39: 100 | X39: 83.33333333 | Y39: 58 | AB39: 0.1780478884 | AC39: 7.191653333 | AD39: B | AE39: B | AF39: 2 (70 dB)
B40: 185/65R15 | C40: 3562430 | D40: 88 | E40: T | G40: CONTINENTAL | H40: PREMIUMCONTACT 5 | I40: 3 | J40: 40 | K40: 28 | L40: 40 | N40: 20 | Q40: 57.73 | R40: 58.27 | S40: 39.97322 | T40: 39.6 | V40: 93 | W40: 95 | X40: 79.16666667 | Y40: 55.1 | AB40: 0.1299231502 | AC40: 5.193446667 | AD40: C | AE40: A | AF40: 2 (70 dB)
C41: 3560510 | D41: 88 | E41: T | G41: CONTINENTAL | H41: ECOCONTACT 5 | J41: 9 | K41: 8 | L41: 8 | N41: 8 | Q41: 57.73 | R41: 58.27 | S41: 39.97322 | V41: 98 | W41: 100 | X41: 83.33333333 | Y41: 58 | AB41: 0.1903802929 | AC41: 7.610113333 | AD41: B | AE41: B | AF41: 2 (70 dB)
C42: 3519140 | D42: 92 | E42: T | F42: XL | G42: CONTINENTAL | H42: ECOCONTACT 5 | L42: 0 | N42: 0 | Q42: 66.3 | R42: 65.33 | S42: 44.81638 | V42: 110 | W42: 110 | X42: 91.66666667 | Y42: 63.8 | AB42: 0.1695872506 | AC42: 7.600286667 | AD42: C | AE42: B | AF42: 2 (71 dB)
B43: 195/65R15 | C43: 3562530 | D43: 91 | E43: H | G43: CONTINENTAL | H43: PREMIUMCONTACT 5 | I43: 7 | J43: 303 | K43: 229 | L43: 300 | N43: 150 | Q43: 59.97 | R43: 58.19 | S43: 39.91834 | T43: 41.14 | V43: 93 | W43: 90 | X43: 75 | Y43: 52.2 | AB43: 0.07093631649 | AC43: 2.83166 | AD43: C | AE43: A | AF43: 2 (71 dB)
C44: 3520580 | D44: 91 | E44: T | G44: CONTINENTAL | H44: ECOCONTACT 3 | J44: 4 | K44: 4 | Q44: 60.71 | R44: 57.72 | S44: 39.59592 | V44: 100 | X44: 0 | Y44: 0 | AB44: -1.018941345 | AC44: -40.34592 | AD44: E | AE44: B | AF44: 2 (71 dB)
C45: 3561510 | D45: 91 | E45: H | G45: CONTINENTAL | H45: ECOCONTACT 5 | I45: 4 | J45: 34 | K45: 30 | L45: 40 | N45: 20 | Q45: 59.97 | R45: 58.19 | S45: 39.91834 | T45: 41.14 | V45: 100 | W45: 95 | X45: 79.16666667 | Y45: 55.1 | AB45: 0.1314765761 | AC45: 5.248326667 | AD45: B | AE45: B | AF45: 3 (72 dB)
C46: 3519600 | D46: 91 | E46: H | G46: CONTINENTAL | H46: PREMIUMCONTACT 2 | J46: 10 | K46: 10 | L46: 2 | N46: 2 | Q46: 59.97 | R46: 58.19 | S46: =R46*S$4 -> 39.91834 | V46: 100 | W46: 100 | X46: =W46/1.2 -> 83.33333333 | Y46: =W46*AB$4 -> 58 | AB46: =(X46*AB$4-0.75-S46)/S46 -> 0.1920168357 | AC46: =X46*AB$4-0.75-S46 -> 7.664993333 | AD46: E | AE46: B | AF46: 2 (71 dB)
C47: 3563650 | D47: 95 | E47: H | F47: XL | G47: CONTINENTAL | H47: PREMIUMCONTACT 5 | I47: 8 | J47: 6 | K47: 6 | L47: 8 | N47: 0 | Q47: 74.12 | R47: 73.1 | S47: 50.1466 | T47: 50.85 | V47: 120 | W47: 120 | X47: 100 | Y47: 69.6 | AB47: 0.1416526744 | AC47: 7.1034 | AD47: B | AE47: B | AF47: 2 (72 dB)
A48: Juunist | C48: 3570600 | D48: 95 | E48: H | F48: XL, CS | G48: CONTINENTAL | H48: ECOCONTACT 5 | L48: 0 | N48: 0 | R48: 82.6 | S48: 56.6636 | W48: 140 | X48: 116.6666667 | Y48: 81.2 | AB48: 0.180946263 | AC48: 10.25306667 | AD48: B | AE48: B | AF48: 2 (71 dB)
B49: 205/65R15 | C49: 3563580 | D49: 94 | E49: H | G49: CONTINENTAL | H49: PREMIUMCONTACT 5 | I49: 4 | J49: 49 | K49: 20 | L49: 40 | N49: 20 | Q49: 91.25 | R49: 92.84 | S49: 63.68824 | T49: 62.6 | V49: 140 | W49: 145 | X49: 120.8333333 | Y49: 84.1 | AB49: 0.08863635317 | AC49: 5.645093333 | AD49: C | AE49: A | AF49: 2 (71 dB)
C50: 3504660 | D50: 94 | E50: H | G50: CONTINENTAL | H50: PREMIUMCONTACT 2 | J50: 14 | K50: 10 | L50: 2 | N50: 2 | Q50: 91.25 | R50: 92.84 | S50: 63.68824 | V50: 145 | W50: 155 | X50: 129.1666667 | Y50: 89.9 | AB50: 0.1645268682 | AC50: 10.47842667 | AD50: F | AE50: B | AF50: 2 (71 dB)
B51: 215/65R15 | C51: 3562850 | D51: 96 | E51: H | G51: CONTINENTAL | H51: PREMIUMCONTACT 5 | I51: 4 | L51: 4 | N51: 0 | Q51: 95.72 | R51: 94.59 | S51: 64.88874 | T51: 65.67 | V51: 155 | W51: 155 | X51: 129.1666667 | Y51: 89.9 | AB51: 0.1429820747 | AC51: 9.277926667 | AD51: C | AE51: A | AF51: 2 (71 dB)
B52: 215/65R16 | C52: 3563480 | D52: 98 | E52: H | G52: CONTINENTAL | H52: PREMIUMCONTACT 5 | I52: 4 | J52: 88 | K52: 60 | L52: 50 | N52: 32 | Q52: 107.64 | R52: 100.65 | S52: 69.0459 | T52: 73.84 | V52: 165 | W52: 155 | X52: 129.1666667 | Y52: 89.9 | AB52: 0.07416467403 | AC52: 5.120766667 | AD52: C | AE52: A | AF52: 2 (71 dB)
C53: 3569220 | D53: 98 | E53: H | G53: CONTINENTAL | H53: ECOCONTACT 5 | N53: 8 | R53: 100.65 | S53: 69.0459 | W53: 160 | X53: 133.3333333 | Y53: 92.8 | AB53: 0.1091655454 | AC53: 7.537433333 | AD53: B | AE53: B | AF53: 2 (71 dB)
C54: 1549135 | D54: 98 | E54: H | F54: FR | G54: CONTINENTAL | H54: CROSSCONTACT LX2 | I54: 8 | J54: 24 | K54: 20 | L54: 20 | N54: 4 | Q54: 104.12 | R54: 100.65 | S54: 69.0459 | T54: 71.27 | V54: 165 | W54: 160 | X54: 133.3333333 | Y54: 92.8 | AB54: 0.1091655454 | AC54: 7.537433333 | AD54: E | AE54: C | AF54: 2 (71 dB)
C55: 3516970 | D55: 98 | E55: H | G55: CONTINENTAL | H55: PREMIUMCONTACT 2 | I55: 4 | J55: 6 | K55: 6 | N55: 0 | Q55: 107.64 | R55: 100.65 | S55: =R55*S$4 -> 69.0459 | T55: 73.84 | V55: 170 | W55: 165 | X55: =W55/1.2 -> 137.5 | Y55: =W55*AB$4 -> 95.7 | AB55: =(X55*AB$4-0.75-S55)/S55 -> 0.1441664168 | AC55: =X55*AB$4-0.75-S55 -> 9.9541 | AD55: C | AE55: B | AF55: 2 (71 dB)
C56: 3540640 | D56: 98 | E56: H | F56: FR | G56: CONTINENTAL | H56: CROSSCONTACT LX | I56: 3 | J56: 5 | K56: 3 | L56: 4 | N56: 0 | Q56: 104.12 | R56: 100.65 | S56: 69.0459 | T56: 71.42 | V56: 165 | W56: 165 | X56: 137.5 | Y56: 95.7 | AB56: 0.1441664168 | AC56: 9.9541 | AD56: E | AE56: C | AF56: 3 (72 dB)
C57: 1547625 | D57: 98 | E57: T | G57: CONTINENTAL | H57: CROSSCONTACT AT | J57: 8 | K57: 4 | L57: 4 | N57: 4 | Q57: 106.34 | R57: 105.03 | S57: 72.05058 | V57: 170 | W57: 175 | X57: 145.8333333 | Y57: 101.5 | AB57: 0.1635344689 | AC57: 11.78275333 | AD57: F | AE57: E | AF57: 3 (75 dB)
C58: 4710130 | D58: 102 | E58: V | F58: XL | G58: CONTINENTAL | H58: 4x4 CONTACT | L58: 0 | N58: 0 | Q58: 127.75 | R58: 126.22 | S58: 86.58692 | V58: 215 | W58: 205 | X58: 170.8333333 | Y58: 118.9 | AB58: 0.1356603669 | AC58: 11.74641333 | AD58: C | AE58: C | AF58: 3 (73 dB)
B59: Profiil 60
B60: 165/60R14 | C60: 3504110 | D60: 75 | E60: T | G60: CONTINENTAL | H60: ECOCONTACT 3 | L60: 0 | N60: 0 | Q60: 61.83 | R60: 63.02 | S60: 43.23172 | V60: 105 | W60: 105 | X60: =W60/1.2 -> 87.5 | Y60: =W60*AB$4 -> 60.9 | AB60: 0.1565581938 | AC60: 6.76828 | AD60: E | AE60: B | AF60: 2 (70 dB)
C61: 3504100 | D61: 79 | E61: T | F61: XL | G61: CONTINENTAL | H61: ECOCONTACT 3 | L61: 0 | N61: 0 | Q61: 73 | R61: 74.31 | S61: 50.97666 | V61: 125 | W61: 125 | X61: =W61/1.2 -> 104.1666667 | Y61: =W61*AB$4 -> 72.5 | AB61: 0.1704703028 | AC61: 8.690006667 | AD61: E | AE61: B | AF61: 2 (71 dB)
B62: 175/60R14 | C62: 3500490 | D62: 79 | E62: H | G62: CONTINENTAL | H62: PREMIUMCONTACT 2 | L62: 0 | N62: 0 | Q62: 70.4 | R62: 69.45 | S62: 47.6427 | V62: 120 | W62: 120 | X62: 100 | Y62: 69.6 | AB62: 0.2016531389 | AC62: 9.6073 | AD62: E | AE62: B | AF62: 2 (70 dB)
B63: 185/60R14 | C63: 3562440 | D63: 82 | E63: H | G63: CONTINENTAL | H63: PREMIUMCONTACT 5 | J63: 1ECO+4 | K63: 1EC+4 | L63: 4 | N63: 4 | Q63: 53.26 | R63: 52.46 | S63: 35.98756 | V63: 90 | W63: 90 | X63: 75 | Y63: 52.2 | AB63: 0.1879104891 | AC63: 6.76244 | AD63: E | AE63: A | AF63: 2 (70 dB)
C64: 3560450 | D64: 82 | E64: H | G64: CONTINENTAL | H64: ECOCONTACT 5 | Q64: 53.26 | R64: 52.46 | S64: 35.98756 | V64: 95 | X64: 0 | Y64: 0 | AB64: -1.020840535 | AC64: -36.73756 | AD64: B | AE64: B | AF64: 2 (70 dB)
B65: 195/60R14 | C65: 3500200 | D65: 86 | E65: H | G65: CONTINENTAL | H65: PREMIUMCONTACT 2 | L65: 0 | N65: 0 | Q65: 73.75 | R65: 72.83 | S65: 49.96138 | V65: 125 | W65: 125 | X65: 104.1666667 | Y65: 72.5 | AB65: 0.1942557765 | AC65: 9.705286667 | AD65: C | AE65: B | AF65: 2 (71 dB)
B66: 155/60R15 | C66: 3528880 | D66: 74 | E66: T | F66: FR | G66: CONTINENTAL | H66: ECOCONTACT 3 | L66: 0 | N66: 0 | Q66: 57.73 | R66: 56.98 | S66: 39.08828 | V66: 100 | W66: 95 | X66: 79.16666667 | Y66: 55.1 | AB66: 0.155504071 | AC66: 6.078386667 | AD66: E | AE66: B | AF66: 2 (70 dB)
B67: 175/60R15 | C67: 3518850 | D67: 81 | E67: H | G67: CONTINENTAL | H67: ECOCONTACT 3 | I67: 4 | L67: 4 | N67: 0 | Q67: 84.18 | R67: 83.02 | S67: 56.95172 | T67: 57.54 | V67: 130 | W67: 135 | X67: 112.5 | Y67: 78.3 | AB67: 0.1325382271 | AC67: 7.54828 | AD67: E | AE67: B | AF67: 2 (70 dB)
B68: 185/60R15 | C68: 3562560 | D68: 84 | E68: H | G68: CONTINENTAL | H68: PREMIUMCONTACT 5 | I68: 4 | J68: 4PC2+7 | K68: 3PC2+4 | L68: 12 | N68: 4 | Q68: 73 | R68: 73.7 | S68: 50.5582 | T68: 50.56 | V68: 120 | W68: 120 | X68: 100 | Y68: 69.6 | AB68: 0.1323583514 | AC68: 6.6918 | AD68: C | AE68: A | AF68: 2 (70 dB)
C69: 3560500 | D69: 88 | E69: H | F69: XL | G69: CONTINENTAL | H69: ECOCONTACT 5 | J69: 4 | K69: 4 | L69: 0 | N69: 0 | Q69: 78.59 | R69: 77.53 | S69: 53.18558 | V69: 125 | W69: 125 | X69: 104.1666667 | Y69: 72.5 | AB69: 0.1218579673 | AC69: 6.481086667 | AD69: B | AE69: B | AF69: 2 (71 dB)
B70: 195/60R15 | C70: 3500720 | D70: 88 | E70: H | G70: CONTINENTAL | H70: PREMIUMCONTACT 2 | J70: 4 | K70: 4 | Q70: 70.44 | R70: 69.53 | S70: 47.69758 | V70: 113 | X70: 0 | Y70: 0 | AB70: -1.015724068 | AC70: -48.44758 | AD70: F | AE70: C | AF70: 2 (71 dB)
B71: 195/60R15 | C71: 3562570 | D71: 88 | E71: H | G71: CONTINENTAL | H71: PREMIUMCONTACT 5 | I71: 12 | J71: 45 | K71: 40 | L71: 40 | N71: 8 | Q71: 70.44 | R71: 69.53 | S71: 47.69758 | T71: 48.3 | V71: 113 | W71: 110 | X71: 91.66666667 | Y71: 63.8 | AB71: 0.098937654 | AC71: 4.719086667 | AD71: C | AE71: A | AF71: 2 (71 dB)
C72: 3560550 | D72: 88 | E72: H | G72: CONTINENTAL | H72: ECOCONTACT 5 | I72: 4 | N72: 4 | Q72: 70.44 | R72: 69.53 | S72: 47.69758 | T72: 48.3 | V72: 110 | W72: 115 | X72: 95.83333333 | Y72: 66.7 | AB72: 0.1496040959 | AC72: 7.135753333 | AD72: B | AE72: B | AF72: 2 (71 dB)
B73: 205/60R15 | C73: 3563590 | D73: 91 | E73: H | G73: CONTINENTAL | H73: PREMIUMCONTACT 5 | I73: 8 | J73: 14 | K73: 10 | L73: 8 | N73: 0 | Q73: 84.55 | R73: 81.71 | S73: 56.05306 | T73: 57.66 | V73: 133 | W73: 135 | X73: 112.5 | Y73: 78.3 | AB73: 0.1506954304 | AC73: 8.44694 | AD73: C | AE73: A | AF73: 2 (71 dB)
C74: 3560610 | D74: 95 | E74: V | F74: XL | G74: CONTINENTAL | H74: ECOCONTACT 5 | L74: 0 | N74: 0 | Q74: 95.26 | R74: 93.89 | S74: =R74*S$4 -> 64.40854 | V74: 155 | W74: 155 | X74: 129.1666667 | Y74: 89.9 | AB74: 0.1515036153 | AC74: =X74*AB$4-0.75-S74 -> 9.758126667 | AD74: B | AE74: B | AF74: 2 (72 dB)
B75: 215/60R15 | C75: 3500500 | D75: 98 | E75: H | F75: XL | G75: CONTINENTAL | H75: PREMIUMCONTACT 2 | L75: 0 | N75: 0 | Q75: 111.74 | R75: 110.37 | S75: 75.71382 | V75: 190 | W75: 185 | X75: 154.1666667 | Y75: 107.3 | AB75: =(X75*AB$4-0.75-S75)/S75 -> 0.1710763856 | AC75: 12.95284667 | AD75: C | AE75: B | AF75: 2 (72 dB)
B76: 225/60R15 | C76: 3500840 | D76: 96 | E76: W | G76: CONTINENTAL | H76: PREMIUMCONTACT 2 | L76: 0 | N76: 0 | Q76: 125.91 | R76: 124.43 | S76: 85.35898 | V76: 215 | W76: 210 | X76: 175 | Y76: 121.8 | AB76: 0.1803093242 | AC76: 15.39102 | AD76: E | AE76: B | AF76: 2 (71 dB)
B77: 195/60R16 | C77: 3501260 | D77: 89 | E77: H | G77: CONTINENTAL | H77: PREMIUMCONTACT 2 | J77: 8 | K77: 4 | L77: 4 | N77: 4 | Q77: 111.74 | R77: 107.06 | S77: 73.44316 | V77: 180 | W77: 175 | X77: 145.8333333 | Y77: 101.5 | AB77: 0.1414723077 | AC77: 10.39017333 | AD77: E | AE77: B | AF77: 2 (71 dB)
C78: 3560600 | D78: 93 | E78: V | F78: XL | G78: CONTINENTAL | H78: ECOCONTACT 5 | L78: 0 | N78: 0 | Q78: 128.49 | R78: 126.82 | S78: 86.99852 | V78: 220 | W78: 210 | X78: 175 | Y78: 121.8 | AB78: 0.1580656774 | AC78: 13.75148 | AD78: B | AE78: B | AF78: 2 (72 dB)
B79: 205/60R16 | C79: 3501160 | D79: 92 | E79: H | G79: CONTINENTAL | H79: PREMIUMCONTACT 2 | J79: 13 | K79: 4 | Q79: 93.12 | R79: 93.81 | S79: 64.35366 | V79: 145 | X79: 0 | Y79: 0 | AB79: -1.011654349 | AC79: -65.10366 | AD79: E | AE79: B | AF79: 2 (71 dB)
B80: 205/60R16 | C80: 3562480 | D80: 92 | E80: H | G80: CONTINENTAL | H80: PREMIUMCONTACT 5 | I80: 4 | J80: 63 | K80: 38 | L80: 40 | N80: 20 | Q80: 93.12 | R80: 93.81 | S80: 64.35366 | T80: 63.88 | V80: 145 | W80: 150 | X80: 125 | Y80: 87 | AB80: 0.1149327016 | AC80: 7.39634 | AD80: C | AE80: A | AF80: 2 (71 dB)
C81: 3563320 | D81: 92 | E81: H | G81: CONTINENTAL | H81: ECOCONTACT 5 | N81: 8 | Q81: 93.12 | R81: 93.81 | S81: 64.35366 | V81: 155 | W81: 155 | X81: 129.1666667 | Y81: 89.9 | AB81: 0.1524856033 | AC81: 9.813006667 | AD81: B | AE81: B | AF81: 2 (71 dB)
C82: 3560640 | D82: 96 | E82: H | F82: XL | G82: CONTINENTAL | H82: ECOCONTACT 5 | I82: 2 | J82: 2 | L82: 4 | N82: 2 | Q82: 113.23 | R82: 107.18 | S82: 73.52548 | T82: 77.68 | V82: 185 | W82: 175 | X82: 145.8333333 | Y82: 101.5 | AB82: 0.1401943018 | AC82: 10.30785333 | AD82: B | AE82: B | AF82: 2 (72 dB)
C83: 3503370 | D83: 96 | E83: H | F83: XL, CS | G83: CONTINENTAL | H83: PREMIUMCONTACT 2 | L83: 0 | N83: 0 | Q83: 129.99 | R83: 121.11 | S83: 83.08146 | V83: 210 | W83: 190 | X83: 158.3333333 | Y83: 110.2 | AB83: 0.09631358589 | AC83: 8.001873333 | AD83: E | AE83: B | AF83: 2 (72 dB)
C84: 3564020 | D84: 92 | E84: V | F84: SSR | G84: CONTINENTAL | H84: PREMIUMCONTACT 2 | L84: 0 | N84: 0 | R84: 137.36 | S84: 94.22896 | W84: 230 | X84: 191.6666667 | Y84: 133.4 | AB84: 0.1717912059 | AC84: 16.18770667 | AD84: C | AE84: B | AF84: 2 (71 dB)
B85: 215/60R16 | C85: 3503380 | D85: 95 | E85: H | G85: CONTINENTAL | H85: PREMIUMCONTACT 2 | J85: 12 | K85: 12 | L85: 40 | N85: 8 | Q85: 111.74 | R85: 113.63 | S85: 77.95018 | V85: 180 | W85: 185 | X85: 154.1666667 | Y85: 107.3 | AB85: 0.1374786648 | AC85: 10.71648667 | AD85: E | AE85: B | AF85: 2 (71 dB)
C86: 3563530 | D86: 99 | E86: H | F86: XL | G86: CONTINENTAL | H86: PREMIUMCONTACT 5 | J86: 47 | K86: 24 | N86: 20 | Q86: 124.78 | R86: 123.18 | S86: 84.50148 | V86: 195 | W86: 195 | X86: 162.5 | Y86: 113.1 | AB86: 0.1064894958 | AC86: 8.99852 | AD86: C | AE86: A | AF86: 2 (72 dB)
C87: 3561100 | D87: 95 | E87: V | G87: CONTINENTAL | H87: ECOCONTACT 5 | J87: 4 | N87: 4 | Q87: 132.55 | R87: 130.84 | S87: 89.75624 | V87: 210 | W87: 205 | X87: 170.8333333 | Y87: 118.9 | AB87: 0.0955598556 | AC87: 8.577093333 | AD87: B | AE87: B | AF87: 2 (71 dB)
C88: 3503390 | D88: 95 | E88: H | F88: CS | G88: CONTINENTAL | H88: PREMIUMCONTACT 2 | L88: 0 | N88: 0 | Q88: 135.21 | R88: 128.4 | S88: 88.0824 | V88: 220 | W88: 215 | X88: 179.1666667 | Y88: 124.7 | AB88: 0.1712517673 | AC88: 15.08426667 | AD88: E | AE88: B | AF88: 2 (71 dB)
B89: 225/60R16 | C89: 3500810 | D89: 98 | E89: V | G89: CONTINENTAL | H89: PREMIUMCONTACT 2 | J89: 8 | K89: 8 | Q89: 148.06 | R89: 146.34 | S89: 100.38924 | V89: 235 | X89: 0 | Y89: 0 | AB89: -1.00747092 | AC89: -101.13924 | AD89: E | AE89: B | AF89: 2 (71 dB)
C90: 3500520 | D90: 102 | E90: V | F90: XL | G90: CONTINENTAL | H90: PREMIUMCONTACT 2 | J90: 8 | K90: 8 | L90: 0 | N90: 4 | Q90: 151.75 | R90: 148.34 | S90: 101.76124 | V90: 255 | W90: 240 | X90: 200 | Y90: 139.2 | AB90: 0.1325530231 | AC90: 13.48876 | AD90: C | AE90: B | AF90: 2 (72 dB)
B91: 235/60R16 | C91: 3501200 | D91: 100 | E91: V | G91: CONTINENTAL | H91: PREMIUMCONTACT 2 | I91: 4 | L91: 4 | N91: 0 | Q91: 169.11 | R91: 167.02 | S91: 114.57572 | T91: 116.26 | V91: 250 | W91: 260 | X91: 216.6666667 | Y91: 150.8 | AB91: 0.09025425864 | AC91: 10.34094667 | AD91: E | AE91: B | AF91: 2 (71 dB)
B92: 215/60R17 | C92: 3563510 | D92: 96 | E92: H | G92: CONTINENTAL | H92: PREMIUMCONTACT 5 | I92: 4 | J92: 32 | K92: 14 | L92: 32 | N92: 12 | Q92: 140.05 | R92: 138.23 | S92: 94.82578 | T92: 96.08 | V92: 215 | W92: 215 | X92: 179.1666667 | Y92: 124.7 | AB92: 0.08796011661 | AC92: 8.340886667 | AD92: C | AE92: A | AF92: 2 (71 dB)
C93: 3501000 | D93: 96 | E93: H | G93: CONTINENTAL | H93: PREMIUMCONTACT 2 | J93: 11 | K93: 4 | N93: 2 | Q93: 140.05 | R93: 138.23 | S93: 94.82578 | V93: 220 | W93: 220 | X93: 183.3333333 | Y93: 127.6 | AB93: 0.1134454505 | AC93: 10.75755333 | AD93: E | AE93: C | AF93: 2 (71 dB)
C94: 3565800 | D94: 96 | E94: H | G94: CONTINENTAL | H94: ECOCONTACT 5 | N94: 4 | R94: 138.23 | S94: 94.82578 | W94: 220 | X94: 183.3333333 | Y94: 127.6 | AB94: 0.1134454505 | AC94: 10.75755333 | AD94: B | AE94: B | AF94: 2 (71 dB)
B95: 235/60R17 | C95: 3500110 | D95: 102 | E95: Y | G95: CONTINENTAL | H95: PREMIUMCONTACT 2 | I95: 4 | L95: 4 | N95: 0 | Q95: 197.54 | R95: 204.49 | S95: 140.28014 | T95: 138.71 | V95: 290 | W95: 320 | X95: 266.6666667 | Y95: 185.6 | AB95: 0.0972092462 | AC95: 13.63652667 | AD95: F | AE95: B | AF95: 2 (71 dB)
B96: Profiil 55
B97: 185/55R14 | C97: 3500600 | D97: 80 | E97: H | G97: CONTINENTAL | H97: PREMIUMCONTACT 2 | L97: 0 | N97: 0 | Q97: 78.59 | R97: 77.64 | S97: 53.26104 | V97: 135 | W97: 130 | X97: =W97/1.2 -> 108.3333333 | Y97: =W97*AB$4 -> 75.4 | AB97: 0.1656425284 | AC97: 8.822293333 | AD97: E | AE97: B | AF97: 2 (70 dB)
B98: 175/55R15 | C98: 3528900 | D98: 77 | E98: T | F98: FR | G98: CONTINENTAL | H98: PREMIUMCONTACT 2 | L98: 0 | N98: 0 | Q98: 68.53 | R98: 67.68 | S98: 46.42848 | V98: 115 | W98: 115 | X98: =W98/1.2 -> 95.83333333 | Y98: =W98*AB$4 -> 66.7 | AB98: 0.1810279667 | AC98: 8.404853333 | AD98: E | AE98: C | AF98: 2 (70 dB)
B99: 185/55R15 | C99: 3562460 | D99: 82 | E99: H | G99: CONTINENTAL | H99: PREMIUMCONTACT 5 | J99: 4 | L99: 0 | M99: 4 | N99: 0 | Q99: 80.08 | R99: 75.78 | S99: 51.98508 | V99: 128 | W99: 125 | X99: 104.1666667 | Y99: 72.5 | AB99: 0.1477652178 | AC99: 7.681586667 | AD99: C | AE99: A | AF99: 2 (70 dB)
C100: 3560470 | D100: 86 | E100: H | F100: XL | G100: CONTINENTAL | H100: ECOCONTACT 5 | L100: 0 | N100: 0 | Q100: 91.25 | R100: 90.07 | S100: 61.78802 | V100: 150 | W100: 150 | X100: 125 | Y100: 87 | AB100: 0.1612283417 | AC100: 9.96198 | AD100: B | AE100: B | AF100: 2 (71 dB)
B101: 195/55R15 | C101: 3562470 | D101: 85 | E101: H | G101: CONTINENTAL | H101: PREMIUMCONTACT 5 | I101: 8 | J101: 32 | K101: 28 | L101: 20 | N101: 4 | Q101: 89.02 | R101: 86.22 | S101: 59.14692 | T101: 61.07 | V101: 140 | W101: 135 | X101: 112.5 | Y101: 78.3 | AB101: 0.09050479721 | AC101: 5.35308 | AD101: C | AE101: A | AF101: 2 (71 dB)
C102: 3560540 | D102: 85 | E102: V | G102: CONTINENTAL | H102: ECOCONTACT 5 | J102: 4 | K102: 4 | N102: 4 | Q102: 93.05 | R102: 91.83 | S102: 62.99538 | V102: 145 | W102: 145 | X102: 120.8333333 | Y102: 84.1 | AB102: 0.1006098119 | AC102: 6.337953333 | AD102: B | AE102: B | AF102: 2 (71 dB)
B103: 205/55R15 | C103: 3500800 | D103: 88 | E103: V | G103: CONTINENTAL | H103: PREMIUMCONTACT 2 | L103: 0 | N103: 0 | Q103: 114.46 | R103: 113.08 | S103: 77.57288 | V103: 190 | W103: 190 | X103: 158.3333333 | Y103: 110.2 | AB103: 0.1741646479 | AC103: 13.51045333 | AD103: E | AE103: B | AF103: 2 (71 dB)
B104: 185/55R16 | C104: 3508080 | D104: 83 | E104: H | G104: CONTINENTAL | H104: PREMIUMCONTACT 2 | J104: 1 | K104: 1 | L104: 0 | N104: 0 | Q104: 86.79 | R104: 89.17 | S104: 61.17062 | V104: 145 | W104: 145 | X104: 120.8333333 | Y104: 84.1 | AB104: 0.1334417296 | AC104: 8.162713333 | AD104: E | AE104: C | AF104: 2 (70 dB)
C105: 3511830 | D105: 87 | E105: H | F105: XL | G105: CONTINENTAL | H105: PREMIUMCONTACT | J105: 4 | K105: 4 | L105: 0 | N105: 0 | Q105: 93.86 | R105: 97.45 | S105: 66.8507 | V105: 160 | W105: 160 | X105: 133.3333333 | Y105: 92.8 | AB105: 0.1455876054 | AC105: 9.732633333 | AD105: E | AE105: C | AF105: 1 (68 dB)
A106: Kuniks! | B106: 195/55R16 | C106: 3501170 | D106: 87 | E106: H | G106: CONTINENTAL | H106: PREMIUMCONTACT 2 | I106: 4 | J106: 2 | K106: 2 | L106: 4 | N106: 0 | Q106: 94.98 | R106: 91.11 | S106: 62.50146 | T106: 65.55 | V106: 140 | W106: 140 | X106: 116.6666667 | Y106: 81.2 | AB106: 0.07064165648 | AC106: 4.415206667 | AD106: F | AE106: B | AF106: 2 (71 dB)
C107: 3562500 | D107: 87 | E107: H | G107: CONTINENTAL | H107: PREMIUMCONTACT 5 | I107: 4 | N107: 0 | Q107: 94.98 | R107: 91.11 | S107: 62.50146 | T107: 72.83 | V107: 150 | W107: 150 | X107: 125 | Y107: 87 | AB107: 0.1479731833 | AC107: 9.24854 | AD107: C | AE107: A | AF107: 2 (71 dB)
C108: 3519130 | D108: 91 | E108: H | F108: XL | G108: CONTINENTAL | H108: ECOCONTACT 5 | L108: 0 | N108: 0 | Q108: 104.64 | R108: 103.23 | S108: 70.81578 | V108: 170 | W108: 175 | X108: 145.8333333 | Y108: 101.5 | AB108: 0.183822777 | AC108: 13.01755333 | AD108: C | AE108: B | AF108: 2 (72 dB)
C109: 3502290 | D109: 91 | E109: H | F109: XL, SSR | G109: CONTINENTAL | H109: PREMIUMCONTACT 2 | L109: 0 | N109: 0 | Q109: 125.52 | R109: 123.87 | S109: 84.97482 | V109: 205 | W109: 210 | X109: 175 | Y109: 121.8 | AB109: 0.1856453476 | AC109: 15.77518 | AD109: F | AE109: B | AF109: 2 (72 dB)
B110: 205/55R16 | C110: 3562540 | D110: 91 | E110: H | G110: CONTINENTAL | H110: PREMIUMCONTACT 5 | I110: 4 | J110: 236 | K110: 176 | L110: 350 | N110: 150 | Q110: 75.98 | R110: 75.64 | S110: 51.88904 | T110: 52.12 | V110: 118 | W110: 120 | X110: 100 | Y110: 69.6 | AB110: 0.1033158447 | AC110: 5.36096 | AD110: C | AE110: A | AF110: 2 (71 dB)
C111: 3502590 | D111: 91 | E111: V | F111: FR | G111: CONTINENTAL | H111: PREMIUMCONTACT 2 | J111: 27 | K111: 21 | S111: 0 | V111: 125 | X111: 0 | Y111: 0 | AC111: -0.75 | AD111: E | AE111: B | AF111: 2 (71 dB)
C112: 3562090 | D112: 91 | E112: H | G112: CONTINENTAL | H112: ECOCONTACT 5 | J112: 21 | K112: 12 | N112: 20 | Q112: 75.98 | R112: 75.64 | S112: 51.88904 | T112: 52.12 | V112: 125 | W112: 125 | X112: 104.1666667 | Y112: 72.5 | AB112: 0.1498895849 | AC112: 7.777626667 | AD112: B | AE112: B | AF112: 2 (71 dB)
C113: 3561930 | D113: 91 | E113: V | F113: FR | G113: CONTINENTAL | H113: PREMIUMCONTACT 5 | I113: 13 | J113: 183 | K113: 130 | N113: 50 | Q113: 80.12 | R113: 76.81 | S113: 52.69166 | T113: 55.04 | V113: 125 | W113: 125 | X113: 104.1666667 | Y113: 72.5 | AB113: 0.1323740164 | AC113: 6.975006667 | AD113: C | AE113: A | AF113: 2 (71 dB)
C114: 3507320 | D114: 91 | E114: H | G114: CONTINENTAL | H114: PREMIUMCONTACT 2 | N114: 2 | R114: 75.64 | S114: =R114*S$4 -> 51.88904 | W114: 125 | X114: =W114/1.2 -> 104.1666667 | Y114: =W114*AB$4 -> 72.5 | AB114: =(X114*AB$4-0.75-S114)/S114 -> 0.1498895849 | AC114: =X114*AB$4-0.75-S114 -> 7.777626667 | AD114: E | AE114: B | AF114: 2 (71 dB)
C115: 3509880 | D115: 91 | E115: V | F115: FR | G115: CONTINENTAL | H115: SPORTCONTACT 2 | I115: 2 | J115: 8 | K115: 5 | N115: 0 | Q115: 80.12 | R115: 76.81 | S115: 52.69166 | T115: 54.97 | V115: 130 | W115: 125 | X115: 104.1666667 | Y115: 72.5 | AB115: 0.1323740164 | AC115: 6.975006667 | AD115: E | AE115: C | AF115: 2 (71 dB)
C116: 3560690 | D116: 94 | E116: H | F116: XL | G116: CONTINENTAL | H116: ECOCONTACT 5 | J116: 4 | K116: 2 | L116: 0 | N116: 4 | Q116: 83.81 | R116: 82.77 | S116: 56.78022 | V116: 140 | W116: 135 | X116: 112.5 | Y116: 78.3 | AB116: 0.135958966 | AC116: 7.71978 | AD116: B | AE116: B | AF116: 2 (72 dB)
C117: 3521180 | D117: 91 | E117: H | F117: SSR | G117: CONTINENTAL | H117: PREMIUMCONTACT | J117: 4 | K117: 4 | L117: 0 | N117: 0 | Q117: 90.88 | R117: 89.87 | S117: 61.65082 | V117: 150 | W117: 150 | X117: 125 | Y117: 87 | AB117: 0.1638125819 | AC117: 10.09918 | AD117: G | AE117: C | AF117: 1 (68 dB)
B118: 215/55R16 | C118: 3563560 | D118: 93 | E118: H | G118: CONTINENTAL | H118: PREMIUMCONTACT 5 | I118: 2 | J118: 62 | K118: 38 | L118: 40 | N118: 20 | Q118: 127.76 | R118: 122.5 | S118: 84.035 | T118: 87.64 | V118: 200 | W118: 195 | X118: 162.5 | Y118: 113.1 | AB118: 0.1126316416 | AC118: 9.465 | AD118: C | AE118: A | AF118: 2 (71 dB)
C119: 3560660 | D119: 97 | E119: W | F119: XL | G119: CONTINENTAL | H119: ECOCONTACT 5 | J119: 4 | K119: 4 | N119: 0 | Q119: 137.72 | R119: 133.16 | S119: 91.34776 | V119: 220 | W119: 220 | X119: 183.3333333 | Y119: 127.6 | AB119: 0.1558393258 | AC119: 14.23557333 | AD119: B | AE119: B | AF119: 2 (72 dB)
B120: 225/55R16 | C120: 3500930 | D120: 95 | E120: V | G120: CONTINENTAL | H120: PREMIUMCONTACT 2 | J120: 10 | K120: 10 | Q120: 132.92 | R120: 131.35 | S120: 90.1061 | V120: 210 | X120: 0 | Y120: 0 | AB120: -1.008323521 | AC120: -90.8561 | AD120: E | AE120: B | AF120: 2 (71 dB)
B121: 225/55R16 | C121: 3562450 | D121: 95 | E121: W | G121: CONTINENTAL | H121: PREMIUMCONTACT 5 | I121: 4 | J121: 21+10 | K121: 16+10 | L121: 32 | N121: 12 | Q121: 136.98 | R121: 135.33 | S121: 92.83638 | T121: 93.97 | V121: 215 | W121: 215 | X121: 179.1666667 | Y121: 124.7 | AB121: 0.1112741219 | AC121: 10.33028667 | AD121: C | AE121: A | AF121: 2 (71 dB)
C122: 3560680 | D122: 99 | E122: Y | F122: XL | G122: CONTINENTAL | H122: ECOCONTACT 5 | L122: 0 | N122: 0 | Q122: 141.78 | R122: 140.08 | S122: 96.09488 | V122: 230 | W122: 230 | X122: 191.6666667 | Y122: 133.4 | AB122: 0.1490379786 | AC122: 14.32178667 | AD122: B | AE122: B | AF122: 2 (72 dB)
C123: 3561120 | D123: 95 | E123: W | F123: SSR | G123: CONTINENTAL | H123: PREMIUMCONTACT 2 | L123: 0 | N123: 0 | Q123: 144.74 | R123: 142.85 | S123: 97.9951 | V123: 245 | W123: 245 | X123: 204.1666667 | Y123: 142.1 | AB123: 0.2007403091 | AC123: 19.67156667 | AD123: E | AE123: B | AF123: 2 (71 dB)
B124: 205/55R17 | C124: 3561990 | D124: 95 | E124: V | F124: XL | G124: CONTINENTAL | H124: PREMIUMCONTACT 5 | I124: 4 | J124: 3 | L124: 4 | N124: 0 | Q124: 146.22 | R124: 139.89 | S124: 95.96454 | T124: 100.31 | V124: 240 | W124: 230 | X124: 191.6666667 | Y124: 133.4 | AB124: 0.1505986135 | AC124: 14.45212667 | AD124: C | AE124: B | AF124: 2 (72 dB)
C125: 3507990 | D125: 91 | E125: V | F125: SSR | G125: CONTINENTAL | H125: PREMIUMCONTACT 2 | N125: 0 | Q125: 170.22 | R125: 168.19 | S125: 115.37834 | V125: 280 | W125: 285 | X125: 237.5 | Y125: 165.3 | AB125: 0.1873979119 | AC125: 21.62166 | AD125: F | AE125: B | AF125: 2 (71 dB)
B126: 215/55R17 | C126: 3566500 | D126: 94 | E126: W | G126: CONTINENTAL | H126: PREMIUMCONTACT 5 | I126: 8 | J126: 47 | K126: 24 | L126: 40 | N126: 12 | Q126: 152.86 | R126: 153.99 | S126: 105.63714 | T126: 104.86 | V126: 240 | W126: 240 | X126: 200 | Y126: 139.2 | AB126: 0.0909988665 | AC126: 9.61286 | AD126: C | AE126: A | AF126: 2 (71 dB)
C127: 3502370 | D127: 94 | E127: W | G127: CONTINENTAL | H127: PREMIUMCONTACT 2 | J127: 6 | K127: 5 | Q127: 152.86 | S127: 0 | V127: 245 | X127: 0 | Y127: 0 | AC127: -0.75 | AD127: E | AE127: B | AF127: 2 (71 dB)
C128: 3566510 | D128: 94 | E128: W | F128: CS | G128: CONTINENTAL | H128: PREMIUMCONTACT 5 | L128: 0 | N128: 0 | Q128: 184.25 | R128: 169.39 | S128: 116.20154 | V128: 300 | W128: 285 | X128: 237.5 | Y128: 165.3 | AB128: 0.1789860961 | AC128: 20.79846 | AD128: C | AE128: A | AF128: 2 (71 dB)
B129: 225/55R17 | C129: 3563500 | D129: 101 | E129: Y | F129: XL | G129: CONTINENTAL | H129: PREMIUMCONTACT 5 | I129: 4 | J129: 41 | K129: 23 | L129: 40 | N129: 12 | Q129: 164.31 | R129: 158.95 | S129: 109.0397 | T129: 112.72 | V129: 255 | W129: 245 | X129: 204.1666667 | Y129: 142.1 | AB129: 0.07911766693 | AC129: 8.626966667 | AD129: C | AE129: A | AF129: 2 (72 dB)
C130: 3509560 | D130: 97 | E130: Y | G130: CONTINENTAL | H130: PREMIUMCONTACT 2 | J130: 4 | K130: 4 | Q130: 163.2 | R130: 157.81 | S130: 108.25766 | V130: 260 | X130: 0 | Y130: 0 | AB130: -1.006927916 | AC130: -109.00766 | AD130: F | AE130: B | AF130: 2 (71 dB)
C131: 3561710 | D131: 97 | E131: W | G131: CONTINENTAL | H131: ECOCONTACT 5 | J131: 4 | K131: 4 | N131: 4 | Q131: 163.2 | R131: 157.81 | S131: 108.25766 | V131: 260 | W131: 250 | X131: 208.3333333 | Y131: 145 | AB131: 0.1092363657 | AC131: 11.82567333 | AD131: B | AE131: B | AF131: 2 (71 dB)
C132: 3573700 | D132: 97 | E132: W | F132: CS | G132: CONTINENTAL | H132: PREMIUMCONTACT 5 | L132: 0 | N132: 0 | R132: 173.6 | S132: 119.0896 | W132: 290 | X132: 241.6666667 | Y132: 168.2 | AB132: 0.1706871689 | AC132: 20.32706667 | AD132: Ettevalmistamisel
C133: 3561810 | D133: 97 | E133: Y | F133: SSR | G133: CONTINENTAL | H133: PREMIUMCONTACT 2 | L133: 0 | N133: 0 | Q133: 206.03 | R133: 189.38 | S133: 129.91468 | V133: 335 | W133: 315 | X133: 262.5 | Y133: 182.7 | AB133: 0.1661499686 | AC133: 21.58532 | AD133: F | AE133: B | AF133: 2 (71 dB)
B134: 235/55R17 | C134: 3567430 | D134: 99 | E134: V | G134: CONTINENTAL | H134: PREMIUMCONTACT 5 | J134: 4 | K134: 4 | L134: 4 | N134: 4 | Q134: 163.57 | R134: 152.83 | S134: 104.84138 | V134: 265 | W134: 245 | X134: 204.1666667 | Y134: 142.1 | AB134: 0.1223303877 | AC134: 12.82528667 | AD134: C | AE134: A | AF134: 2 (71 dB)
B135: 245/55R17 | C135: 3501640 | D135: 102 | E135: W | F135: SSR | G135: CONTINENTAL | H135: PREMIUMCONTACT 2 | L135: 0 | N135: 0 | Q135: 244.43 | R135: 236.61 | S135: 162.31446 | V135: 400 | W135: 385 | X135: 320.8333333 | Y135: 223.3 | AB135: 0.1418165291 | AC135: 23.01887333 | AD135: F | AE135: C | AF135: 2 (71 dB)
B136: 215/55R18 | C136: 3506310 | D136: 99 | E136: V | F136: XL, FR | G136: CONTINENTAL | H136: PREMIUMCONTACT 2 | I136: 4 | J136: 3 | L136: 4 | N136: 0 | Q136: 200.49 | R136: 187.9 | S136: 128.8994 | T136: 137.63 | V136: 315 | W136: 300 | X136: 250 | Y136: 174 | AB136: 0.1190897708 | AC136: 15.3506 | AD136: C | AE136: C | AF136: 2 (72 dB)
B137: 235/55R18 | C137: 3561590 | D137: 100 | E137: V | G137: CONTINENTAL | H137: PREMIUMCONTACT 2 | L137: 0 | N137: 0 | Q137: 174.65 | R137: 160.53 | S137: =R137*S$4 -> 110.12358 | V137: 285 | W137: 265 | X137: 220.8333333 | Y137: 153.7 | AB137: 0.1562767332 | AC137: =X137*AB$4-0.75-S137 -> 17.20975333 | AD137: E | AE137: B | AF137: 2 (71 dB)
C138: 3502440 | D138: 104 | E138: Y | F138: XL | G138: CONTINENTAL | H138: PREMIUMCONTACT 2 | N138: 0 | Q138: 211.94 | R138: 217.14 | S138: 148.95804 | V138: 330 | W138: 355 | X138: 295.8333333 | Y138: 205.9 | AB138: =(X138*AB$4-0.75-S138)/S138 -> 0.1468554053 | AC138: 21.87529333 | AD138: E | AE138: B | AF138: 2 (72 dB)
B139: 235/55R19 | C139: 3569630 | D139: 101 | E139: W | G139: CONTINENTAL | H139: SPORTCONTACT 5 | Q139: 203.82 | S139: 0 | V139: 320 | X139: 0 | Y139: 0 | AC139: -0.75
B140: Profiil 50
A141: Kuniks! | B141: 195/50R15 | C141: 3502530 | D141: 82 | E141: H | G141: CONTINENTAL | H141: PREMIUMCONTACT 2 | I141: 2 | J141: 2 | K141: 2 | L141: 4 | N141: 2 | Q141: 59.22 | R141: 58.5 | S141: 40.131 | T141: 40.43 | V141: 90 | W141: 90 | X141: =W141/1.2 -> 75 | Y141: =W141*AB$4 -> 52.2 | AB141: 0.06526126934 | AC141: 2.619 | AD141: F | AE141: B | AF141: 2 (71 dB)
C142: 3562590 | D142: 82 | E142: V | G142: CONTINENTAL | H142: PREMIUMCONTACT 5 | I142: 4 | J142: 1 | N142: 0 | Q142: 59.45 | R142: 60.38 | S142: 41.42068 | T142: 40.43 | V142: 100 | W142: 100 | X142: =W142/1.2 -> 83.33333333 | Y142: =W142*AB$4 -> 58 | AB142: 0.1487820416 | AC142: 6.162653333 | AD142: E | AE142: A | AF142: 2 (71 dB)
B143: 205/50R15 | C143: 3500690 | D143: 86 | E143: V | G143: CONTINENTAL | H143: PREMIUMCONTACT 2 | L143: 0 | N143: 0 | Q143: 101.54 | R143: 100.17 | S143: 68.71662 | V143: 165 | W143: 165 | X143: 137.5 | Y143: 95.7 | AB143: 0.1496490951 | AC143: 10.28338 | AD143: E | AE143: B | AF143: 2 (71 dB)
B144: 185/50R16 | C144: 3509450 | D144: 81 | E144: T | G144: CONTINENTAL | H144: PREMIUMCONTACT 2 | L144: 0 | N144: 0 | Q144: 96.74 | R144: 95.35 | S144: 65.4101 | V144: 160 | W144: 160 | X144: 133.3333333 | Y144: 92.8 | AB144: 0.1708181662 | AC144: 11.17323333 | AD144: C | AE144: C | AF144: 2 (70 dB)
B145: 195/50R16 | C145: 3514020 | D145: 84 | E145: H | F145: FR | G145: CONTINENTAL | H145: SPORTCONTACT | L145: 0 | N145: 0 | Q145: 102.43 | R145: 103.23 | S145: 70.81578 | V145: 170 | W145: 170 | X145: 141.6666667 | Y145: 98.6 | AB145: 0.1496966731 | AC145: 10.60088667 | AD145: E | AE145: B | AF145: 3 (74 dB)
C146: 3522570 | D146: 88 | E146: V | F146: XL, FR | G146: CONTINENTAL | H146: SPORTCONTACT 2 | N146: 0 | Q146: 111.37 | R146: 119.89 | S146: 82.24454 | V146: 190 | W146: 200 | X146: 166.6666667 | Y146: 116 | AB146: 0.1662374994 | AC146: 13.67212667 | AD146: E | AE146: B | AF146: 3 (74 dB)
B147: 205/50R16 | C147: 3502160 | D147: 87 | E147: W | G147: CONTINENTAL | H147: PREMIUMCONTACT 2 | L147: 0 | N147: 0 | Q147: 115.94 | R147: 114.39 | S147: 78.47154 | V147: 190 | W147: 185 | X147: 154.1666667 | Y147: 107.3 | AB147: 0.1299213277 | AC147: 10.19512667 | AD147: E | AE147: B | AF147: 2 (71 dB)
B148: 225/50R16 | C148: 3563470 | D148: 92 | E148: W | G148: CONTINENTAL | H148: PREMIUMCONTACT 5 | J148: 6 | K148: 4 | L148: 0 | M148: 4 | N148: 0 | Q148: 136.62 | R148: 134.86 | S148: 92.51396 | V148: 180 | W148: 215 | X148: 179.1666667 | Y148: 124.7 | AB148: 0.1151470185 | AC148: 10.65270667 | AD148: F | AE148: B | AF148: 2 (71 dB)
B149: 205/50R17 | C149: 3505620 | D149: 89 | E149: H | F149: FR | G149: CONTINENTAL | H149: PREMIUMCONTACT 2 | I149: 4 | J149: 14 | K149: 12 | L149: 8 | N149: 0 | Q149: 125.15 | R149: 123.47 | S149: 84.70042 | T149: 86.91 | V149: 195 | W149: 195 | X149: 162.5 | Y149: 113.1 | AB149: 0.1038906301 | AC149: 8.79958 | AD149: E | AE149: B | AF149: 2 (71 dB)
C150: 3527370 | D150: 89 | E150: V | F150: FR | G150: CONTINENTAL | H150: SPORTCONTACT 5 | I150: 4 | N150: 0 | Q150: 135.51 | R150: 131.25 | S150: 90.0375 | T150: 92.69 | V150: 215 | W150: 210 | X150: 175 | Y150: 121.8 | AB150: 0.1189782035 | AC150: 10.7125 | AD150: C | AE150: A | AF150: 2 (71 dB)
C151: 3563310 | D151: 89 | E151: V | G151: CONTINENTAL | H151: ECOCONTACT 5 | Q151: 135.51 | R151: 131.25 | S151: 90.0375 | V151: 215 | X151: 0 | Y151: 0 | AB151: -1.008329863 | AC151: -90.7875 | AD151: B | AE151: B | AF151: 2 (71 dB)
C152: 3527410 | D152: 93 | E152: W | F152: XL, FR | G152: CONTINENTAL | H152: SPORTCONTACT 5 | N152: 0 | Q152: 145.11 | R152: 139.07 | S152: 95.40202 | V152: 235 | W152: 230 | X152: 191.6666667 | Y152: 133.4 | AB152: 0.157382901 | AC152: 15.01464667 | AD152: C | AE152: A | AF152: 2 (72 dB)
C153: 3565670 | D153: 93 | E153: V | F153: XL, FR, CS | G153: CONTINENTAL | H153: ECOCONTACT 5 | L153: 0 | N153: 0 | R153: 165.74 | S153: 113.69764 | W153: 280 | X153: 233.3333333 | Y153: 162.4 | AB153: 0.1836950471 | AC153: 20.88569333 | AD153: B | AE153: B | AF153: 2 (72 dB)
C154: 3508180 | D154: 89 | E154: Y | F154: SSR | G154: CONTINENTAL | H154: PREMIUMCONTACT 2 | L154: 0 | N154: 0 | Q154: 172.43 | R154: 163.46 | S154: 112.13356 | V154: 280 | W154: 280 | X154: 233.3333333 | Y154: 162.4 | AB154: 0.2002056595 | AC154: 22.44977333 | AD154: E | AE154: B | AF154: 2 (71 dB)
A155: Kuniks! | B155: 215/50R17 | C155: 3506930 | D155: 95 | E155: V | F155: XL, FR | G155: CONTINENTAL | H155: SPORTCONTACT 3 | I155: 4 | J155: 8 | K155: 8 | L155: 12 | N155: 0 | Q155: 166.52 | R155: 151.11 | S155: 103.66146 | T155: 114.7 | V155: 245 | W155: 235 | X155: 195.8333333 | Y155: 136.3 | AB155: 0.08847910625 | AC155: 9.171873333 | AD155: E | AE155: C | AF155: 3 (73 dB)
C156: 3527740 | D156: 91 | E156: W | F156: FR | G156: CONTINENTAL | H156: SPORTCONTACT 5 | I156: 8 | J156: 4 | K156: 4 | N156: 0 | Q156: 158.03 | R156: 153.04 | S156: 104.98544 | T156: 108.41 | V156: 255 | W156: 245 | X156: 204.1666667 | Y156: 142.1 | AB156: 0.1207903369 | AC156: 12.68122667 | AD156: E | AE156: A | AF156: 2 (71 dB)
B157: 225/50R17 | C157: 3507920 | D157: 94 | E157: H | F157: FR | G157: CONTINENTAL | H157: SPORTCONTACT 2 | I157: 2 | J157: 22 | K157: 9 | L157: 50 | N157: 6 | Q157: 151.22 | R157: 149.17 | S157: 102.33062 | T157: 103.74 | V157: 230 | W157: 235 | X157: 195.8333333 | Y157: 136.3 | AB157: 0.1026350992 | AC157: 10.50271333 | AD157: F | AE157: B | AF157: 2 (71 dB)
C158: 3528750 | D158: 94 | E158: Y | F158: FR | G158: CONTINENTAL | H158: SPORTCONTACT 5 | I158: 8 | J158: 1CS3+33 | K158: 1+16 | N158: 4 | Q158: 159.88 | R158: 153.24 | S158: 105.12264 | T158: 109.68 | V158: 245 | W158: 240 | X158: 200 | Y158: 139.2 | AB158: 0.09633852422 | AC158: 10.12736 | AD158: C | AE158: A | AF158: 2 (71 dB)
C159: 3561110 | D159: 94 | E159: V | G159: CONTINENTAL | H159: ECOCONTACT 5 | N159: 4 | Q159: 162.09 | R159: 151.97 | S159: 104.25142 | V159: 250 | W159: 240 | X159: 200 | Y159: 139.2 | AB159: 0.1055005294 | AC159: 10.99858 | AD159: B | AE159: B | AF159: 2 (71 dB)
C160: 3503420 | D160: 98 | E160: H | F160: XL, FR | G160: CONTINENTAL | H160: PREMIUMCONTACT 2 | I160: 2 | J160: 14 | K160: 8 | N160: 6 | Q160: 161.72 | R160: 153.94 | S160: 105.60284 | T160: 109.07 | V160: 245 | W160: 240 | X160: 200 | Y160: 139.2 | AB160: 0.09135322497 | AC160: 9.64716 | AD160: E | AE160: B | AF160: 2 (72 dB)
C161: 3503430 | D161: 98 | E161: H | F161: XL, FR, CS | G161: CONTINENTAL | H161: PREMIUMCONTACT 2 | L161: 0 | N161: 0 | Q161: 174.69 | R161: 169.34 | S161: 116.16724 | V161: 265 | W161: 285 | X161: 237.5 | Y161: 165.3 | AB161: 0.1793342082 | AC161: 20.83276 | AD161: E | AE161: B | AF161: 2 (72 dB)
C162: 3509570 | D162: 94 | E162: W | F162: FR, SSR | G162: CONTINENTAL | H162: SPORTCONTACT 5 | L162: 0 | N162: 0 | Q162: 192 | R162: 180.17 | S162: 123.59662 | V162: 310 | W162: 300 | X162: 250 | Y162: 174 | AB162: 0.1671031133 | AC162: 20.65338 | AD162: E | AE162: B | AF162: 2 (71 dB)
B163: 235/50R17 | C163: 3560340 | D163: 96 | E163: W | F163: FR | G163: CONTINENTAL | H163: SPORTCONTACT 5 | J163: 4 | K163: 4 | L163: 0 | M163: 4 | N163: 0 | Q163: 177.6 | R163: 171.7 | S163: 117.7862 | V163: 285 | W163: 275 | X163: 229.1666667 | Y163: 159.5 | AB163: 0.1220895713 | AC163: 14.38046667 | AD163: Ettevalmistamisel
B164: 225/50R18 | C164: 3561530 | D164: 95 | E164: W | F164: FR,SSR | G164: CONTINENTAL | H164: SPORTCONTACT 5 | L164: 0 | N164: 0 | Q164: 249.6 | R164: 239.2 | S164: 164.0912 | V164: 395 | W164: 385 | X164: 320.8333333 | Y164: 223.3 | AB164: 0.1294532146 | AC164: 21.24213333 | AD164: E | AE164: B | AF164: 2 (71 dB)
B165: 235/50R18 | C165: 3501020 | D165: 97 | E165: W | F165: FR | G165: CONTINENTAL | H165: PREMIUMCONTACT 2 | I165: 4 | L165: 4 | N165: 0 | Q165: 210.42 | R165: 201.42 | S165: 138.17412 | T165: 141.9 | V165: 330 | W165: 300 | X165: 250 | Y165: 174 | AB165: 0.04397263395 | AC165: 6.07588 | AD165: F | AE165: B | AF165: 2 (71 dB)
C166: 3512970 | D166: 97 | E166: V | F166: FR | G166: CONTINENTAL | H166: SPORTCONTACT 5 | N166: 0 | R166: 169.06 | S166: 115.97516 | X166: 0 | Y166: 0 | AB166: -1.006466902 | AC166: -116.72516 | AD166: E | AE166: B | AF166: 2 (71 dB)
B167: 245/50R18 | C167: 3523980 | D167: 100 | E167: W | F167: FR | G167: CONTINENTAL | H167: SPORTCONTACT 5 | I167: 8 | J167: 12 | L167: 4 | N167: 0 | Q167: 223.75 | R167: 214.2 | S167: 146.9412 | T167: 153.49 | V167: 350 | W167: 335 | X167: 279.1666667 | Y167: 194.3 | AB167: 0.09681060633 | AC167: 14.22546667 | AD167: E | AE167: B | AF167: 2 (71 dB)
C168: 3501660 | D168: 100 | E168: Y | F168: SSR | G168: CONTINENTAL | H168: SPORTCONTACT 3 | L168: 0 | N168: 0 | Q168: 268.43 | R168: 244.19 | S168: 167.51434 | V168: 420 | W168: 390 | X168: 325 | Y168: 226.2 | AB168: 0.1207995686 | AC168: 20.23566 | AD168: F | AE168: B | AF168: 3 (72 dB)
B169: 275/50R19 | C169: 3515500 | D169: 112 | E169: W | F169: XL, FR | G169: CONTINENTAL | H169: PREMIUMCONTACT | L169: 0 | N169: 0 | Q169: 347.45 | R169: 332.59 | S169: 228.15674 | V169: 535 | W169: 520 | X169: 433.3333333 | Y169: 301.6 | AB169: 0.09829467818 | AC169: 22.42659333 | AD169: E | AE169: B | AF169: 1 (70 dB)
B170: Profiil 45
B171: 195/45R15 | C171: 3518180 | D171: 78 | E171: V | F171: FR | G171: CONTINENTAL | H171: SPORTCONTACT 2 | L171: 0 | N171: 0 | Q171: 89.35 | R171: 83.8 | S171: 57.4868 | V171: 150 | W171: 145 | X171: =W171/1.2 -> 120.8333333 | Y171: =W171*AB$4 -> 84.1 | AB171: 0.2060739741 | AC171: 11.84653333 | AD171: F | AE171: B | AF171: 2 (71 dB)
B172: 195/45R16 | C172: 3503640 | D172: 80 | E172: V | G172: CONTINENTAL | H172: SPORTCONTACT 3 | Q172: 90.46 | R172: 89.44 | S172: 61.35584 | V172: 150 | X172: =W172/1.2 -> 0 | Y172: =W172*AB$4 -> 0 | AB172: -1.012223775 | AC172: -62.10584 | AD172: F | AE172: B | AF172: 3 (73 dB)
B173: 195/45R16 | C173: 3507440 | D173: 84 | E173: H | F173: XL, FR | G173: CONTINENTAL | H173: ECOCONTACT 5 | L173: 0 | N173: 0 | Q173: 94.61 | R173: 90.47 | S173: 62.06242 | V173: 160 | W173: 155 | X173: 129.1666667 | Y173: 89.9 | AB173: 0.1950334303 | AC173: 12.10424667 | AD173: B | AE173: B | AF173: 2 (72 dB)
B174: 205/45R16 | C174: 3500010 | D174: 83 | E174: W | F174: FR | G174: CONTINENTAL | H174: PREMIUMCONTACT 2 | J174: 4 | L174: 0 | M174: 4 | N174: 0 | Q174: 105.97 | R174: 107.74 | S174: 73.90964 | V174: 170 | W174: 175 | X174: 145.8333333 | Y174: 101.5 | AB174: 0.134267916 | AC174: 9.923693333 | AD174: E | AE174: B | AF174: 2 (71 dB)
B175: 215/45R16 | C175: 3568750 | D175: 86 | E175: H | F175: FR | G175: CONTINENTAL | H175: PREMIUMCONTACT 2 | L175: 0 | N175: 0 | Q175: 125.17 | R175: 114.29 | S175: 78.40294 | V175: 210 | W175: 195 | X175: 162.5 | Y175: 113.1 | AB175: 0.1925573199 | AC175: 15.09706 | AD175: E | AE175: B | AF175: 2 (71 dB)
B176: 225/45R16 | C176: 3516280 | E176: ZR | G176: CONTINENTAL | H176: SPORTCONTACT 2 | Q176: 146.58 | S176: 0 | V176: 250 | X176: 0 | Y176: 0 | AC176: -0.75 | AD176: E | AE176: B | AF176: 2 (71 dB)
B177: 245/45R16 | C177: 3570490 | E177: ZR | F177: FR | G177: CONTINENTAL | H177: SPORTCONTACT | L177: 0 | N177: 0 | Q177: 170.95 | R177: 168.67 | S177: 115.70762 | V177: 290 | W177: 280 | X177: 233.3333333 | Y177: 162.4 | AB177: 0.1631328458 | AC177: 18.87571333 | AD177: E | AE177: B | AF177: 3 (72 dB)
B178: 195/45R17 | C178: 3507980 | D178: 81 | E178: W | F178: FR | G178: CONTINENTAL | H178: SPORTCONTACT 3 | L178: 0 | N178: 0 | Q178: 146.58 | R178: 141.92 | S178: 97.35712 | V178: 250 | W178: 240 | X178: 200 | Y178: 139.2 | AB178: 0.1837860446 | AC178: 17.89288 | AD178: E | AE178: B | AF178: 3 (72 dB)
B179: 205/45R17 | C179: 3508050 | D179: 84 | E179: V | G179: CONTINENTAL | H179: SPORTCONTACT 3 | J179: 10 | K179: 10 | Q179: 135.88 | R179: 134.08 | S179: 91.97888 | V179: 215 | X179: 0 | Y179: 0 | AB179: -1.008154046 | AC179: -92.72888 | AD179: F | AE179: B | AF179: 3 (72 dB)
B180: 205/45R17 | C180: 3527290 | D180: 88 | E180: V | F180: XL, FR | G180: CONTINENTAL | H180: SPORTCONTACT 5 | J180: 10 | K180: 10 | L180: 4 | N180: 4 | Q180: 148.43 | R180: 140.53 | S180: 96.40358 | V180: 240 | W180: 225 | X180: 187.5 | Y180: 130.5 | AB180: 0.1202903461 | AC180: 11.59642 | AD180: E | AE180: A | AF180: 2 (72 dB)
C181: 3502350 | D181: 84 | E181: V | F181: SSR | G181: CONTINENTAL | H181: SPORTCONTACT 3 | L181: 0 | N181: 0 | Q181: 154.71 | R181: 152.86 | S181: 104.86196 | V181: 245 | W181: 255 | X181: 212.5 | Y181: 147.9 | AB181: 0.1682024635 | AC181: 17.63804 | AD181: F | AE181: B | AF181: 3 (72 dB)
B182: 215/45R17 | C182: 3527440 | D182: 87 | E182: V | F182: FR | G182: CONTINENTAL | H182: SPORTCONTACT 5 | I182: 5+3 | L182: 0 | N182: 0 | Q182: 129.97 | R182: 124.39 | S182: 85.33154 | T182: 89.35 | V182: 200 | W182: 200 | X182: 166.6666667 | Y182: 116 | AB182: 0.1240470601 | AC182: 10.58512667 | AD182: E | AE182: A | AF182: 2 (71 dB)
C183: 3527480 | D183: 91 | E183: W | F183: XL, FR | G183: CONTINENTAL | H183: SPORTCONTACT 5 | I183: 4 | N183: 0 | Q183: 126.28 | R183: 124.79 | S183: 85.60594 | T183: 91.38 | V183: 205 | W183: 205 | X183: 170.8333333 | Y183: 118.9 | AB183: 0.1486741847 | AC183: 12.72739333 | AD183: E | AE183: A | AF183: 2 (72 dB)
B184: 225/45R17 | C184: 3527990 | D184: 91 | E184: Y | F184: FR | G184: CONTINENTAL | H184: SPORTCONTACT 5 | I184: 4 | J184: 168 | K184: 103 | L184: 125 | N184: 50 | Q184: 115.2 | R184: 110.29 | S184: 75.65894 | T184: 79.03 | V184: 178 | W184: 175 | X184: 145.8333333 | Y184: 101.5 | AB184: 0.1080426627 | AC184: 8.174393333 | AD184: C | AE184: A | AF184: 2 (71 dB)
C185: 3500980 | D185: 91 | E185: W | F185: FR | G185: CONTINENTAL | H185: SPORTCONTACT 3 | J185: 7 | K185: 3 | L185: 0 | N185: 1 | Q185: 115.2 | R185: 110.29 | S185: 75.65894 | V185: 185 | W185: 185 | X185: 154.1666667 | Y185: 107.3 | AB185: 0.1719258381 | AC185: 13.00772667 | AD185: F | AE185: B | AF185: 3 (72 dB)
C186: 3561090 | D186: 94 | E186: V | F186: XL, FR | G186: CONTINENTAL | H186: ECOCONTACT 5 | J186: 4 | K186: 4 | L186: 4 | N186: 4 | Q186: 117.05 | R186: 116.5 | S186: 79.919 | V186: 190 | W186: 185 | X186: 154.1666667 | Y186: 107.3 | AB186: 0.1094566582 | AC186: 8.747666667 | AD186: E | AE186: A | AF186: 2 (72 dB)
C187: 3502790 | D187: 91 | E187: Y | F187: FR, SSR | G187: CONTINENTAL | H187: SPORTCONTACT 5 | J187: 4 | K187: 4 | L187: 0 | N187: 0 | Q187: 138.09 | R187: 124.33 | S187: 85.29038 | V187: 230 | W187: 205 | X187: 170.8333333 | Y187: 118.9 | AB187: 0.1529240851 | AC187: 13.04295333 | AD187: E | AE187: B | AF187: 3 (72 dB)
B188: 235/45R17 | C188: 3529020 | D188: 94 | E188: Y | F188: FR | G188: CONTINENTAL | H188: SPORTCONTACT 5 | I188: 4 | J188: 50 | K188: 22 | L188: 40 | N188: 12 | Q188: 127.06 | R188: 121.67 | S188: 83.46562 | T188: 87.14 | V188: 200 | W188: 195 | X188: 162.5 | Y188: 113.1 | AB188: 0.1202217152 | AC188: 10.03438 | AD188: C | AE188: A | AF188: 2 (71 dB)
C189: 3500410 | D189: 94 | E189: W | F189: FR | G189: CONTINENTAL | H189: SPORTCONTACT 3 | J189: 5 | K189: 5 | L189: 0 | N189: 1 | Q189: 127.02 | R189: 121.67 | S189: 83.46562 | V189: 205 | W189: 205 | X189: 170.8333333 | Y189: 118.9 | AB189: 0.1781297896 | AC189: 14.86771333 | AD189: E | AE189: B | AF189: 3 (72 dB)
C190: 3529260 | D190: 97 | E190: Y | F190: XL, FR | G190: CONTINENTAL | H190: SPORTCONTACT 5 | J190: 4 | K190: 4 | L190: 4 | N190: 4 | Q190: 130.71 | R190: 125.17 | S190: 85.86662 | V190: 210 | W190: 205 | X190: 170.8333333 | Y190: 118.9 | AB190: 0.1451869578 | AC190: 12.46671333 | AD190: C | AE190: A | AF190: 2 (72 dB)
C191: 3509950 | D191: 94 | E191: W | F191: FR, CS | G191: CONTINENTAL | H191: SPORTCONTACT 5 | J191: 15 | K191: 8 | L191: 4 | N191: 4 | Q191: 142.15 | R191: 133.83 | S191: 91.80738 | V191: 230 | W191: 220 | X191: 183.3333333 | Y191: 127.6 | AB191: 0.1500527881 | AC191: 13.77595333 | AD191: E | AE191: B | AF191: 2 (71 dB)
C192: 3528210 | D192: 97 | E192: W | F192: XL, FR, SSR | G192: CONTINENTAL | H192: SPORTCONTACT 3 | L192: 0 | N192: 0 | Q192: 165.05 | R192: 150.2 | S192: 103.0372 | V192: 270 | W192: 250 | X192: 208.3333333 | Y192: 145 | AB192: 0.1654366902 | AC192: 17.04613333 | AD192: E | AE192: B | AF192: 3 (73 dB)
B193: 245/45R17 | C193: 3525170 | D193: 95 | E193: Z | F193: FR | G193: CONTINENTAL | H193: SPORTCONTACT 2 | I193: 4 | L193: 0 | N193: 0 | Q193: 172.06 | S193: 0 | T193: 122.5 | V193: 285 | W193: 250 | X193: 208.3333333 | Y193: 145 | AB193: =(X193*AB$4-0.65-T193)/T193 -> -0.01891156463 | AC193: =X193*AB$4-0.65-T193 -> -2.316666667 | AD193: F | AE193: B | AF193: 2 (71 dB)
C194: 3504500 | D194: 95 | E194: W | F194: FR | G194: CONTINENTAL | H194: SPORTCONTACT 3 | I194: 2 | L194: 0 | N194: 0 | S194: 0 | T194: 123.5 | W194: 250 | X194: 208.3333333 | Y194: 145 | AB194: =(X194*AB$4-0.65-T194)/T194 -> -0.02685560054 | AC194: =X194*AB$4-0.65-T194 -> -3.316666667 | AD194: E | AE194: B | AF194: 3 (73 dB)
C195: 3529550 | D195: 95 | E195: Y | F195: FR | G195: CONTINENTAL | H195: SPORTCONTACT 5 | I195: 4+8 | J195: 9+8 | K195: 8+2 | L195: 12 | N195: 0 | Q195: 172.06 | R195: 163.08 | S195: 111.87288 | T195: 119.06 | V195: 290 | W195: 260 | X195: 216.6666667 | Y195: 150.8 | AB195: =(X195*AB$4-0.75-S195)/S195 -> 0.116594716 | AC195: =X195*AB$4-0.75-S195 -> 13.04378667 | AD195: C | AE195: A | AF195: 2 (71 dB)
C196: 3529970 | D196: 99 | E196: Y | F196: XL, FR | G196: CONTINENTAL | H196: SPORTCONTACT 5 | J196: 4 | K196: 4 | L196: 4 | N196: 4 | Q196: 179.82 | R196: 172.33 | S196: 118.21838 | V196: 295 | W196: 285 | X196: 237.5 | Y196: 165.3 | AB196: 0.1588722498 | AC196: 18.78162 | AD196: C | AE196: A | AF196: 2 (72 dB)
B197: 255/45R17 | C197: 3507330 | D197: 98 | E197: Y | F197: FR | G197: CONTINENTAL | H197: SPORTCONTACT 5 | I197: 4 | L197: 4 | N197: 0 | Q197: 218.58 | R197: 211.3 | S197: 144.9518 | T197: 149.95 | V197: 340 | W197: 335 | X197: 279.1666667 | Y197: 194.3 | AB197: 0.1118638518 | AC197: 16.21486667 | AD197: E | AE197: B | AF197: 2 (72 dB)
C198: 3509590 | D198: 98 | E198: W | F198: FR, SSR | G198: CONTINENTAL | H198: SPORTCONTACT 5 | N198: 0 | Q198: 251.45 | R198: 243.45 | S198: 167.0067 | V198: 410 | W198: 390 | X198: 325 | Y198: 226.2 | AB198: 0.1242063941 | AC198: 20.7433 | AD198: E | AE198: B | AF198: 2 (72 dB)
B199: 225/45R18 | C199: 3528350 | D199: 91 | E199: Y | F199: FR | G199: CONTINENTAL | H199: SPORTCONTACT 5 | I199: 4 | J199: 10 | K199: 8 | L199: 8 | N199: 4 | Q199: 179.82 | R199: 168.87 | S199: 115.84482 | T199: 123.36 | V199: 280 | W199: 270 | X199: 225 | Y199: 156.6 | AB199: 0.1200328163 | AC199: 13.90518 | AD199: C | AE199: A | AF199: 2 (71 dB)
C200: 3528470 | D200: 95 | E200: Y | F200: XL, FR | G200: CONTINENTAL | H200: SPORTCONTACT 5 | J200: 4 | K200: 4 | L200: 0 | N200: 0 | Q200: 186.83 | R200: 179.04 | S200: =R200*S$4 -> 122.82144 | V200: 315 | W200: 290 | X200: 241.6666667 | Y200: 168.2 | AB200: 0.1351166919 | AC200: 16.59522667 | AD200: C | AE200: A | AF200: 2 (72 dB)
C201: 3509720 | D201: 95 | E201: W | F201: XL, FR, CS | G201: CONTINENTAL | H201: SPORTCONTACT 3 | J201: 4 | L201: 0 | N201: 0 | Q201: 205.29 | R201: 196.95 | S201: 135.1077 | V201: 335 | W201: 320 | X201: 266.6666667 | Y201: 185.6 | AB201: 0.1392146167 | AC201: 18.80896667 | AD201: E | AE201: B | AF201: 3 (73 dB)
... 395 more rows
